{"text_format":"1","workbook":"xlsx","n_sheets":4,"sheets":["Estado y Minutos","Gráficos Estado y Minutos","Tarjetas, Goles y Tendencia","Gráficos Tarjetas, Goles y Ten."],"not_rendered":{"charts":7,"images":2,"macros":0,"external_links":0,"defined_names":0,"comments":1,"pivot_tables":0},"unopened":[],"bounds":{"document_bytes":16777216,"sheet_cells":100000,"rows_first":2000,"rows_last":500,"rows_between":2000,"halvings":0,"cell_chars":16384,"cell_head_chars":4096},"cells_cut":0,"cells_raw":0,"read":"whole","date_system":"1900"}

{"sheet":"Estado y Minutos","index":0,"n_rows":71,"n_cols":86,"rows_kept":71,"cut":false,"hidden":false,"merged":[[44,12,44,13],[44,14,44,15],[44,16,44,17],[44,18,44,19],[44,20,44,21],[44,2,44,3],[44,4,44,5],[44,6,44,7],[44,8,44,9],[44,10,44,11],[14,68,14,69],[14,70,14,71],[14,72,14,73],[14,74,14,75],[14,36,14,37],[14,38,14,39],[14,40,14,41],[14,42,14,43],[14,76,14,77],[5,2,5,8],[14,56,14,57],[14,58,14,59],[14,60,14,61],[14,62,14,63],[14,64,14,65],[14,66,14,67],[14,44,14,45],[14,46,14,47],[14,48,14,49],[14,50,14,51],[14,52,14,53],[14,54,14,55],[14,32,14,33],[14,34,14,35],[1,1,3,34],[14,2,14,3],[14,4,14,5],[14,6,14,7],[14,8,14,9],[14,10,14,11],[14,12,14,13],[14,14,14,15],[14,16,14,17],[14,18,14,19],[14,20,14,21],[14,22,14,23],[14,24,14,25],[14,26,14,27],[14,28,14,29],[14,30,14,31]]}
[]
[null,"REGISTRO DE MINUTOS EN PARTIDOS"]
[]
[]
[]
[null,null,"Comandos Partido"]
[]
[null,null,null,1,"Titular"]
[null,null,null,2,"Suplente"]
[null,null,null,3,"Lesión"]
[null,null,null,4,"No convocado"]
[]
[null,"Liga"]
[]
[null,null,"Partido 1",null,"Partido 2",null,"Partido 3",null,"Partido 4",null,"Partido 5",null,"Partido 6",null,"Partido 7",null,"Partido 8",null,"Partido 9",null,"Partido 10",null,"Partido 11",null,"Partido 12",null,"Partido 13",null,"Partido 14",null,"Partido 15",null,"Partido 16",null,"Partido 17",null,"Partido 18",null,"Partido 19",null,"Partido 20",null,"Partido 21",null,"Partido 22",null,"Partido 23",null,"Partido 24",null,"Partido 25",null,"Partido 26",null,"Partido 27",null,"Partido 28",null,"Partido 29",null,"Partido 30",null,"Partido 31",null,"Partido 32",null,"Partido 33",null,"Partido 34",null,"Partido 35",null,"Partido 36",null,"Partido 37",null,"Partido 38"]
[null,null,"E","Min","E","Min","E","Min","E","Min","E","Min","E","Min","E","Min","E","Min","E","Min","E","Min","E","Min","E","Min","E","Min","E","Min","E","Min","E","Min","E","Min","E","Min","E","Min","E","Min","E","Min","E","Min","E","Min","E","Min","E","Min","E","Min","E","Min","E","Min","E","Min","E","Min","E","Min","E","Min","E","Min","E","Min","E","Min","E","Min","E","Min","E","Min",null,null,null,"Titular","Suplente","Lesión ","No convocado","Minutos"]
[null,"Abu Bakkar",null,null,1,80,1,80,1,80,1,80,1,80,1,80,1,80,2,40,1,80,1,80,1,80,1,80,1,80,1,80,1,80,1,80,null,null,null,null,null,null,null,null,null,null,null,null,null,null,null,null,null,null,null,null,null,null,null,null,null,null,null,null,null,null,null,null,null,null,null,null,null,null,null,null,null,null,null,null,"Jugador 1",{"$f":"COUNTIFS(C17:BZ17,1)","v":15},{"$f":"COUNTIFS(C17:BZ17,2)","v":1},{"$f":"COUNTIFS(C17:BZ17,3)","v":0},{"$f":"COUNTIFS(C17:BZ17,4)","v":0},{"$f":"D17+F17+H17+J17+L17+N17+P17+R17+T17+V17+X17+Z17+AB17+AD17+AF17+AH17+AJ17+AL17+AN17+AP17+AR17+AT17+AV17+AX17+AZ17+BB17+BD17+BF17+BH17+BJ17+BL17+BN17+BP17+BR17+BT17+BV17+BX17+BZ17","v":1240}]
[null,"Yerai ",null,null,null,null,null,null,null,null,null,null,null,null,null,null,null,null,null,null,2,15,2,10,null,null,1,50,null,null,null,null,1,50,2,15,null,null,null,null,null,null,null,null,null,null,null,null,null,null,null,null,null,null,null,null,null,null,null,null,null,null,null,null,null,null,null,null,null,null,null,null,null,null,null,null,null,null,null,null,"Jugador 2",{"$f":"COUNTIFS(C18:BZ18,1)","v":2},{"$f":"COUNTIFS(C18:BZ18,2)","v":3},{"$f":"COUNTIFS(C18:BZ18,3)","v":0},{"$f":"COUNTIFS(C18:BZ18,4)","v":0},{"$f":"D18+F18+H18+J18+L18+N18+P18+R18+T18+V18+X18+Z18+AB18+AD18+AF18+AH18+AJ18+AL18+AN18+AP18+AR18+AT18+AV18+AX18+AZ18+BB18+BD18+BF18+BH18+BJ18+BL18+BN18+BP18+BR18+BT18+BV18+BX18+BZ18","v":140}]
[null,"Eric",1,80,1,80,1,80,1,80,1,80,1,55,1,40,1,80,2,15,1,80,1,70,1,80,1,80,1,70,1,80,1,60,2,40,null,null,null,null,null,null,null,null,null,null,null,null,null,null,null,null,null,null,null,null,null,null,null,null,null,null,null,null,null,null,null,null,null,null,null,null,null,null,null,null,null,null,null,null,"Jugador 3",15,2,0,0,1150]
[null,"Karl",1,80,1,70,1,80,1,80,1,80,1,65,1,80,1,80,1,80,1,65,1,80,1,80,2,40,1,70,1,80,1,80,1,75,null,null,null,null,null,null,null,null,null,null,null,null,null,null,null,null,null,null,null,null,null,null,null,null,null,null,null,null,null,null,null,null,null,null,null,null,null,null,null,null,null,null,null,null,"Jugador 4",16,1,0,0,1265]
[null,"Lucas",1,80,1,80,1,80,1,80,1,80,1,80,1,80,null,null,1,80,1,80,1,80,1,63,1,80,1,80,1,80,1,80,1,80,null,null,null,null,null,null,null,null,null,null,null,null,null,null,null,null,null,null,null,null,null,null,null,null,null,null,null,null,null,null,null,null,null,null,null,null,null,null,null,null,null,null,null,null,"Jugador 5",16,0,0,0,1263]
[null,"Adri",1,80,1,80,1,80,1,80,1,80,1,80,1,80,1,80,1,65,1,80,1,80,1,80,1,80,1,80,1,80,1,80,1,80,null,null,null,null,null,null,null,null,null,null,null,null,null,null,null,null,null,null,null,null,null,null,null,null,null,null,null,null,null,null,null,null,null,null,null,null,null,null,null,null,null,null,null,null,"Jugador 6",17,0,0,0,1345]
[null,"Yeray",1,80,1,70,1,80,1,80,1,80,1,80,1,80,1,80,1,80,1,80,1,80,1,80,1,80,1,80,1,80,1,80,1,80,null,null,null,null,null,null,null,null,null,null,null,null,null,null,null,null,null,null,null,null,null,null,null,null,null,null,null,null,null,null,null,null,null,null,null,null,null,null,null,null,null,null,null,null,"Jugador 7",17,0,0,0,1350]
[null,"Marc",1,80,1,80,1,80,1,80,null,null,1,80,1,80,1,80,1,80,1,75,1,80,1,80,1,60,1,70,1,80,1,60,1,80,null,null,null,null,null,null,null,null,null,null,null,null,null,null,null,null,null,null,null,null,null,null,null,null,null,null,null,null,null,null,null,null,null,null,null,null,null,null,null,null,null,null,null,null,"Jugador 8",16,0,0,0,1225]
[null,"Unai",1,80,1,80,1,80,2,40,1,80,2,40,1,65,1,80,1,80,1,80,1,80,1,80,1,60,1,70,1,75,1,80,1,45,null,null,null,null,null,null,null,null,null,null,null,null,null,null,null,null,null,null,null,null,null,null,null,null,null,null,null,null,null,null,null,null,null,null,null,null,null,null,null,null,null,null,null,null,"Jugador 9",15,2,0,0,1195]
[null,"Caio",null,null,null,null,null,null,null,null,null,null,2,40,2,40,null,null,1,65,null,null,null,null,2,40,null,null,2,40,1,80,1,80,1,80,null,null,null,null,null,null,null,null,null,null,null,null,null,null,null,null,null,null,null,null,null,null,null,null,null,null,null,null,null,null,null,null,null,null,null,null,null,null,null,null,null,null,null,null,"Jugador 10",4,4,0,0,465]
[null,"Iker",1,80,1,80,1,80,1,80,1,80,1,80,1,80,1,80,1,80,1,80,1,80,null,null,1,80,1,80,1,80,1,80,1,65,null,null,null,null,null,null,null,null,null,null,null,null,null,null,null,null,null,null,null,null,null,null,null,null,null,null,null,null,null,null,null,null,null,null,null,null,null,null,null,null,null,null,null,null,"Jugador 11",16,0,0,0,1265]
[null,"Ángel",1,80,1,80,1,80,1,70,1,80,1,80,1,80,1,80,1,80,1,80,1,80,1,80,1,80,1,70,1,25,null,null,2,40,null,null,null,null,null,null,null,null,null,null,null,null,null,null,null,null,null,null,null,null,null,null,null,null,null,null,null,null,null,null,null,null,null,null,null,null,null,null,null,null,null,null,null,null,"Jugador 12",15,1,0,0,1165]
[null,"Graham",1,80,1,35,null,null,1,80,1,80,1,60,2,40,1,80,1,80,2,40,1,70,1,80,2,40,1,70,2,60,2,40,1,75,null,null,null,null,null,null,null,null,null,null,null,null,null,null,null,null,null,null,null,null,null,null,null,null,null,null,null,null,null,null,null,null,null,null,null,null,null,null,null,null,null,null,null,null,"Jugador 13",11,5,0,0,1010]
[null,"Thiago",null,null,2,20,1,80,null,50,1,80,1,60,1,55,1,80,1,55,1,45,2,10,1,57,1,70,2,40,null,null,2,40,1,45,null,null,null,null,null,null,null,null,null,null,null,null,null,null,null,null,null,null,null,null,null,null,null,null,null,null,null,null,null,null,null,null,null,null,null,null,null,null,null,null,null,null,null,null,"Jugador 14",10,4,0,0,787]
[null,"Jugador 15",null,null,null,null,null,null,null,null,null,null,null,null,null,null,null,null,null,null,null,null,null,null,null,null,null,null,null,null,null,null,null,null,null,null,null,null,null,null,null,null,null,null,null,null,null,null,null,null,null,null,null,null,null,null,null,null,null,null,null,null,null,null,null,null,null,null,null,null,null,null,null,null,null,null,null,null,null,null,"Jugador 15",0,0,0,0,0]
[null,"Jugador 16",null,null,null,null,null,null,null,null,null,null,null,null,null,null,null,null,null,null,null,null,null,null,null,null,null,null,null,null,null,null,null,null,null,null,null,null,null,null,null,null,null,null,null,null,null,null,null,null,null,null,null,null,null,null,null,null,null,null,null,null,null,null,null,null,null,null,null,null,null,null,null,null,null,null,null,null,null,null,"Jugador 16",0,0,0,0,0]
[null,"Jugador 17",null,null,null,null,null,null,null,null,null,null,null,null,null,null,null,null,null,null,null,null,null,null,null,null,null,null,null,null,null,null,null,null,null,null,null,null,null,null,null,null,null,null,null,null,null,null,null,null,null,null,null,null,null,null,null,null,null,null,null,null,null,null,null,null,null,null,null,null,null,null,null,null,null,null,null,null,null,null,"Jugador 17",0,0,0,0,0]
[null,"Jugador 18",null,null,null,null,null,null,null,null,null,null,null,null,null,null,null,null,null,null,null,null,null,null,null,null,null,null,null,null,null,null,null,null,null,null,null,null,null,null,null,null,null,null,null,null,null,null,null,null,null,null,null,null,null,null,null,null,null,null,null,null,null,null,null,null,null,null,null,null,null,null,null,null,null,null,null,null,null,null,"Jugador 18",0,0,0,0,0]
[null,"Jugador 19",null,null,null,null,null,null,null,null,null,null,null,null,null,null,null,null,null,null,null,null,null,null,null,null,null,null,null,null,null,null,null,null,null,null,null,null,null,null,null,null,null,null,null,null,null,null,null,null,null,null,null,null,null,null,null,null,null,null,null,null,null,null,null,null,null,null,null,null,null,null,null,null,null,null,null,null,null,null,"Jugador 19",0,0,0,0,0]
[null,"Jugador 20",null,null,null,null,null,null,null,null,null,null,null,null,null,null,null,null,null,null,null,null,null,null,null,null,null,null,null,null,null,null,null,null,null,null,null,null,null,null,null,null,null,null,null,null,null,null,null,null,null,null,null,null,null,null,null,null,null,null,null,null,null,null,null,null,null,null,null,null,null,null,null,null,null,null,null,null,null,null,"Jugador 20",0,0,0,0,0]
[null,"Jugador 21",null,null,null,null,null,null,null,null,null,null,null,null,null,null,null,null,null,null,null,null,null,null,null,null,null,null,null,null,null,null,null,null,null,null,null,null,null,null,null,null,null,null,null,null,null,null,null,null,null,null,null,null,null,null,null,null,null,null,null,null,null,null,null,null,null,null,null,null,null,null,null,null,null,null,null,null,null,null,"Jugador 21",0,0,0,0,0]
[null,"Jugador 22",null,null,null,null,null,null,null,null,null,null,null,null,null,null,null,null,null,null,null,null,null,null,null,null,null,null,null,null,null,null,null,null,null,null,null,null,null,null,null,null,null,null,null,null,null,null,null,null,null,null,null,null,null,null,null,null,null,null,null,null,null,null,null,null,null,null,null,null,null,null,null,null,null,null,null,null,null,null,"Jugador 22",0,0,0,0,0]
[null,"Jugador 23",null,null,null,null,null,null,null,null,null,null,null,null,null,null,null,null,null,null,null,null,null,null,null,null,null,null,null,null,null,null,null,null,null,null,null,null,null,null,null,null,null,null,null,null,null,null,null,null,null,null,null,null,null,null,null,null,null,null,null,null,null,null,null,null,null,null,null,null,null,null,null,null,null,null,null,null,null,null,"Jugador 23",0,0,0,0,0]
[null,"Jugador 24",null,null,null,null,null,null,null,null,null,null,null,null,null,null,null,null,null,null,null,null,null,null,null,null,null,null,null,null,null,null,null,null,null,null,null,null,null,null,null,null,null,null,null,null,null,null,null,null,null,null,null,null,null,null,null,null,null,null,null,null,null,null,null,null,null,null,null,null,null,null,null,null,null,null,null,null,null,null,"Jugador 24",0,0,0,0,0]
[null,"Jugador 25",null,null,null,null,null,null,null,null,null,null,null,null,null,null,null,null,null,null,null,null,null,null,null,null,null,null,null,null,null,null,null,null,null,null,null,null,null,null,null,null,null,null,null,null,null,null,null,null,null,null,null,null,null,null,null,null,null,null,null,null,null,null,null,null,null,null,null,null,null,null,null,null,null,null,null,null,null,null,"Jugador 25",0,0,0,0,0]
[]
[]
[null,"Amistosos"]
[null,null,"Partido 1",null,"Partido 2",null,"Partido 3",null,"Partido 4",null,"Partido 5",null,"Partido 6",null,"Partido 7",null,"Partido 8",null,"Partido 9",null,"Partido 10"]
[null,null,null,null,null,null,null,null,null,null,null,null,null,null,null,null,null,null,"E","Min","E","Min",null,null,"Titular","Suplente","Lesión ","No convocado","Minutos"]
[null,"Jugador 1",null,null,null,null,null,null,null,null,null,null,null,null,null,null,null,null,null,null,null,null,null,"Jugador 1",{"$f":"COUNTIFS(C47:V47,1)","v":0},{"$f":"COUNTIFS(C47:V47,2)","v":0},{"$f":"COUNTIFS(C47:V47,3)","v":0},{"$f":"COUNTIFS(C47:V47,4)","v":0},{"$f":"D47+F47+H47+J47+L47+N47+P47+R47+T47+V47","v":0}]
[null,"Jugador 2",null,null,null,null,null,null,null,null,null,null,null,null,null,null,null,null,null,null,null,null,null,"Jugador 2",{"$f":"COUNTIFS(C48:V48,1)","v":0},{"$f":"COUNTIFS(C48:V48,2)","v":0},{"$f":"COUNTIFS(C48:V48,3)","v":0},{"$f":"COUNTIFS(C48:V48,4)","v":0},{"$f":"D48+F48+H48+J48+L48+N48+P48+R48+T48+V48","v":0}]
[null,"Jugador 3",null,null,null,null,null,null,null,null,null,null,null,null,null,null,null,null,null,null,null,null,null,"Jugador 3",0,0,0,0,0]
[null,"Jugador 4",null,null,null,null,null,null,null,null,null,null,null,null,null,null,null,null,null,null,null,null,null,"Jugador 4",0,0,0,0,0]
[null,"Jugador 5",null,null,null,null,null,null,null,null,null,null,null,null,null,null,null,null,null,null,null,null,null,"Jugador 5",0,0,0,0,0]
[null,"Jugador 6",null,null,null,null,null,null,null,null,null,null,null,null,null,null,null,null,null,null,null,null,null,"Jugador 6",0,0,0,0,0]
[null,"Jugador 7",null,null,null,null,null,null,null,null,null,null,null,null,null,null,null,null,null,null,null,null,null,"Jugador 7",0,0,0,0,0]
[null,"Jugador 8",null,null,null,null,null,null,null,null,null,null,null,null,null,null,null,null,null,null,null,null,null,"Jugador 8",0,0,0,0,0]
[null,"Jugador 9",null,null,null,null,null,null,null,null,null,null,null,null,null,null,null,null,null,null,null,null,null,"Jugador 9",0,0,0,0,0]
[null,"Jugador 10",null,null,null,null,null,null,null,null,null,null,null,null,null,null,null,null,null,null,null,null,null,"Jugador 10",0,0,0,0,0]
[null,"Jugador 11",null,null,null,null,null,null,null,null,null,null,null,null,null,null,null,null,null,null,null,null,null,"Jugador 11",0,0,0,0,0]
[null,"Jugador 12",null,null,null,null,null,null,null,null,null,null,null,null,null,null,null,null,null,null,null,null,null,"Jugador 12",0,0,0,0,0]
[null,"Jugador 13",null,null,null,null,null,null,null,null,null,null,null,null,null,null,null,null,null,null,null,null,null,"Jugador 13",0,0,0,0,0]
[null,"Jugador 14",null,null,null,null,null,null,null,null,null,null,null,null,null,null,null,null,null,null,null,null,null,"Jugador 14",0,0,0,0,0]
[null,"Jugador 15",null,null,null,null,null,null,null,null,null,null,null,null,null,null,null,null,null,null,null,null,null,"Jugador 15",0,0,0,0,0]
[null,"Jugador 16",null,null,null,null,null,null,null,null,null,null,null,null,null,null,null,null,null,null,null,null,null,"Jugador 16",0,0,0,0,0]
[null,"Jugador 17",null,null,null,null,null,null,null,null,null,null,null,null,null,null,null,null,null,null,null,null,null,"Jugador 17",0,0,0,0,0]
[null,"Jugador 18",null,null,null,null,null,null,null,null,null,null,null,null,null,null,null,null,null,null,null,null,null,"Jugador 18",0,0,0,0,0]
[null,"Jugador 19",null,null,null,null,null,null,null,null,null,null,null,null,null,null,null,null,null,null,null,null,null,"Jugador 19",0,0,0,0,0]
[null,"Jugador 20",null,null,null,null,null,null,null,null,null,null,null,null,null,null,null,null,null,null,null,null,null,"Jugador 20",0,0,0,0,0]
[null,"Jugador 21",null,null,null,null,null,null,null,null,null,null,null,null,null,null,null,null,null,null,null,null,null,"Jugador 21",0,0,0,0,0]
[null,"Jugador 22",null,null,null,null,null,null,null,null,null,null,null,null,null,null,null,null,null,null,null,null,null,"Jugador 22",0,0,0,0,0]
[null,"Jugador 23",null,null,null,null,null,null,null,null,null,null,null,null,null,null,null,null,null,null,null,null,null,"Jugador 23",0,0,0,0,0]
[null,"Jugador 24",null,null,null,null,null,null,null,null,null,null,null,null,null,null,null,null,null,null,null,null,null,"Jugador 24",0,0,0,0,0]
[null,"Jugador 25",null,null,null,null,null,null,null,null,null,null,null,null,null,null,null,null,null,null,null,null,null,"Jugador 25",0,0,0,0,0]

{"sheet":"Gráficos Estado y Minutos","index":1,"n_rows":66,"n_cols":8,"rows_kept":66,"cut":false,"hidden":false,"merged":[[1,2,3,36]]}
[]
[null,null,"GRÁFICO DE ESTADO Y DE MINUTOS"]
[]
[]
[]
[null,null,"Liga"]
[]
[null,null,null,"Titular","Suplente","Lesión","No convocado","Minutos"]
[null,null,{"$f":"+'Estado y Minutos'!B17","v":"Abu Bakkar"},{"$f":"'Estado y Minutos'!CD17","v":15},{"$f":"'Estado y Minutos'!CE17","v":1},{"$f":"'Estado y Minutos'!CF17","v":0},{"$f":"'Estado y Minutos'!CG17","v":0},{"$f":"'Estado y Minutos'!CH17","v":1240}]
[null,null,{"$f":"+'Estado y Minutos'!B18","v":"Yerai "},{"$f":"'Estado y Minutos'!CD18","v":2},{"$f":"'Estado y Minutos'!CE18","v":3},{"$f":"'Estado y Minutos'!CF18","v":0},{"$f":"'Estado y Minutos'!CG18","v":0},{"$f":"'Estado y Minutos'!CH18","v":140}]
[null,null,{"$f":"+'Estado y Minutos'!B19","v":"Eric"},{"$f":"'Estado y Minutos'!CD19","v":15},{"$f":"'Estado y Minutos'!CE19","v":2},{"$f":"'Estado y Minutos'!CF19","v":0},{"$f":"'Estado y Minutos'!CG19","v":0},{"$f":"'Estado y Minutos'!CH19","v":1150}]
[null,null,{"$f":"+'Estado y Minutos'!B20","v":"Karl"},{"$f":"'Estado y Minutos'!CD20","v":16},{"$f":"'Estado y Minutos'!CE20","v":1},{"$f":"'Estado y Minutos'!CF20","v":0},{"$f":"'Estado y Minutos'!CG20","v":0},{"$f":"'Estado y Minutos'!CH20","v":1265}]
[null,null,{"$f":"+'Estado y Minutos'!B21","v":"Lucas"},{"$f":"'Estado y Minutos'!CD21","v":16},{"$f":"'Estado y Minutos'!CE21","v":0},{"$f":"'Estado y Minutos'!CF21","v":0},{"$f":"'Estado y Minutos'!CG21","v":0},{"$f":"'Estado y Minutos'!CH21","v":1263}]
[null,null,{"$f":"+'Estado y Minutos'!B22","v":"Adri"},{"$f":"'Estado y Minutos'!CD22","v":17},{"$f":"'Estado y Minutos'!CE22","v":0},{"$f":"'Estado y Minutos'!CF22","v":0},{"$f":"'Estado y Minutos'!CG22","v":0},{"$f":"'Estado y Minutos'!CH22","v":1345}]
[null,null,{"$f":"+'Estado y Minutos'!B23","v":"Yeray"},{"$f":"'Estado y Minutos'!CD23","v":17},{"$f":"'Estado y Minutos'!CE23","v":0},{"$f":"'Estado y Minutos'!CF23","v":0},{"$f":"'Estado y Minutos'!CG23","v":0},{"$f":"'Estado y Minutos'!CH23","v":1350}]
[null,null,{"$f":"+'Estado y Minutos'!B24","v":"Marc"},{"$f":"'Estado y Minutos'!CD24","v":16},{"$f":"'Estado y Minutos'!CE24","v":0},{"$f":"'Estado y Minutos'!CF24","v":0},{"$f":"'Estado y Minutos'!CG24","v":0},{"$f":"'Estado y Minutos'!CH24","v":1225}]
[null,null,{"$f":"+'Estado y Minutos'!B25","v":"Unai"},{"$f":"'Estado y Minutos'!CD25","v":15},{"$f":"'Estado y Minutos'!CE25","v":2},{"$f":"'Estado y Minutos'!CF25","v":0},{"$f":"'Estado y Minutos'!CG25","v":0},{"$f":"'Estado y Minutos'!CH25","v":1195}]
[null,null,{"$f":"+'Estado y Minutos'!B26","v":"Caio"},{"$f":"'Estado y Minutos'!CD26","v":4},{"$f":"'Estado y Minutos'!CE26","v":4},{"$f":"'Estado y Minutos'!CF26","v":0},{"$f":"'Estado y Minutos'!CG26","v":0},{"$f":"'Estado y Minutos'!CH26","v":465}]
[null,null,{"$f":"+'Estado y Minutos'!B27","v":"Iker"},{"$f":"'Estado y Minutos'!CD27","v":16},{"$f":"'Estado y Minutos'!CE27","v":0},{"$f":"'Estado y Minutos'!CF27","v":0},{"$f":"'Estado y Minutos'!CG27","v":0},{"$f":"'Estado y Minutos'!CH27","v":1265}]
[null,null,{"$f":"+'Estado y Minutos'!B28","v":"Ángel"},{"$f":"'Estado y Minutos'!CD28","v":15},{"$f":"'Estado y Minutos'!CE28","v":1},{"$f":"'Estado y Minutos'!CF28","v":0},{"$f":"'Estado y Minutos'!CG28","v":0},{"$f":"'Estado y Minutos'!CH28","v":1165}]
[null,null,{"$f":"+'Estado y Minutos'!B29","v":"Graham"},{"$f":"'Estado y Minutos'!CD29","v":11},{"$f":"'Estado y Minutos'!CE29","v":5},{"$f":"'Estado y Minutos'!CF29","v":0},{"$f":"'Estado y Minutos'!CG29","v":0},{"$f":"'Estado y Minutos'!CH29","v":1010}]
[null,null,{"$f":"+'Estado y Minutos'!B30","v":"Thiago"},{"$f":"'Estado y Minutos'!CD30","v":10},{"$f":"'Estado y Minutos'!CE30","v":4},{"$f":"'Estado y Minutos'!CF30","v":0},{"$f":"'Estado y Minutos'!CG30","v":0},{"$f":"'Estado y Minutos'!CH30","v":787}]
[null,null,{"$f":"+'Estado y Minutos'!B31","v":"Jugador 15"},{"$f":"'Estado y Minutos'!CD31","v":0},{"$f":"'Estado y Minutos'!CE31","v":0},{"$f":"'Estado y Minutos'!CF31","v":0},{"$f":"'Estado y Minutos'!CG31","v":0},{"$f":"'Estado y Minutos'!CH31","v":0}]
[null,null,{"$f":"+'Estado y Minutos'!B32","v":"Jugador 16"},{"$f":"'Estado y Minutos'!CD32","v":0},{"$f":"'Estado y Minutos'!CE32","v":0},{"$f":"'Estado y Minutos'!CF32","v":0},{"$f":"'Estado y Minutos'!CG32","v":0},{"$f":"'Estado y Minutos'!CH32","v":0}]
[null,null,{"$f":"+'Estado y Minutos'!B33","v":"Jugador 17"},{"$f":"'Estado y Minutos'!CD33","v":0},{"$f":"'Estado y Minutos'!CE33","v":0},{"$f":"'Estado y Minutos'!CF33","v":0},{"$f":"'Estado y Minutos'!CG33","v":0},{"$f":"'Estado y Minutos'!CH33","v":0}]
[null,null,{"$f":"+'Estado y Minutos'!B34","v":"Jugador 18"},{"$f":"'Estado y Minutos'!CD34","v":0},{"$f":"'Estado y Minutos'!CE34","v":0},{"$f":"'Estado y Minutos'!CF34","v":0},{"$f":"'Estado y Minutos'!CG34","v":0},{"$f":"'Estado y Minutos'!CH34","v":0}]
[null,null,{"$f":"+'Estado y Minutos'!B35","v":"Jugador 19"},{"$f":"'Estado y Minutos'!CD35","v":0},{"$f":"'Estado y Minutos'!CE35","v":0},{"$f":"'Estado y Minutos'!CF35","v":0},{"$f":"'Estado y Minutos'!CG35","v":0},{"$f":"'Estado y Minutos'!CH35","v":0}]
[null,null,{"$f":"+'Estado y Minutos'!B36","v":"Jugador 20"},{"$f":"'Estado y Minutos'!CD36","v":0},{"$f":"'Estado y Minutos'!CE36","v":0},{"$f":"'Estado y Minutos'!CF36","v":0},{"$f":"'Estado y Minutos'!CG36","v":0},{"$f":"'Estado y Minutos'!CH36","v":0}]
[null,null,{"$f":"+'Estado y Minutos'!B37","v":"Jugador 21"},{"$f":"'Estado y Minutos'!CD37","v":0},{"$f":"'Estado y Minutos'!CE37","v":0},{"$f":"'Estado y Minutos'!CF37","v":0},{"$f":"'Estado y Minutos'!CG37","v":0},{"$f":"'Estado y Minutos'!CH37","v":0}]
[null,null,{"$f":"+'Estado y Minutos'!B38","v":"Jugador 22"},{"$f":"'Estado y Minutos'!CD38","v":0},{"$f":"'Estado y Minutos'!CE38","v":0},{"$f":"'Estado y Minutos'!CF38","v":0},{"$f":"'Estado y Minutos'!CG38","v":0},{"$f":"'Estado y Minutos'!CH38","v":0}]
[null,null,{"$f":"+'Estado y Minutos'!B39","v":"Jugador 23"},{"$f":"'Estado y Minutos'!CD39","v":0},{"$f":"'Estado y Minutos'!CE39","v":0},{"$f":"'Estado y Minutos'!CF39","v":0},{"$f":"'Estado y Minutos'!CG39","v":0},{"$f":"'Estado y Minutos'!CH39","v":0}]
[null,null,{"$f":"+'Estado y Minutos'!B40","v":"Jugador 24"},{"$f":"'Estado y Minutos'!CD40","v":0},{"$f":"'Estado y Minutos'!CE40","v":0},{"$f":"'Estado y Minutos'!CF40","v":0},{"$f":"'Estado y Minutos'!CG40","v":0},{"$f":"'Estado y Minutos'!CH40","v":0}]
[null,null,{"$f":"+'Estado y Minutos'!B41","v":"Jugador 25"},{"$f":"'Estado y Minutos'!CD41","v":0},{"$f":"'Estado y Minutos'!CE41","v":0},{"$f":"'Estado y Minutos'!CF41","v":0},{"$f":"'Estado y Minutos'!CG41","v":0},{"$f":"'Estado y Minutos'!CH41","v":0}]
[]
[]
[]
[]
[]
[null,null,"Amistosos"]
[]
[null,null,null,"Titular","Suplente","Lesión","No convocado","Minutos"]
[null,null,{"$f":"+'Estado y Minutos'!B47","v":"Jugador 1"},{"$f":"'Estado y Minutos'!Y47","v":0},{"$f":"'Estado y Minutos'!Z47","v":0},{"$f":"'Estado y Minutos'!AA47","v":0},{"$f":"'Estado y Minutos'!AB47","v":0},{"$f":"'Estado y Minutos'!AC47","v":0}]
[null,null,{"$f":"+'Estado y Minutos'!B48","v":"Jugador 2"},{"$f":"'Estado y Minutos'!Y48","v":0},{"$f":"'Estado y Minutos'!Z48","v":0},{"$f":"'Estado y Minutos'!AA48","v":0},{"$f":"'Estado y Minutos'!AB48","v":0},{"$f":"'Estado y Minutos'!AC48","v":0}]
[null,null,{"$f":"+'Estado y Minutos'!B49","v":"Jugador 3"},{"$f":"'Estado y Minutos'!Y49","v":0},{"$f":"'Estado y Minutos'!Z49","v":0},{"$f":"'Estado y Minutos'!AA49","v":0},{"$f":"'Estado y Minutos'!AB49","v":0},{"$f":"'Estado y Minutos'!AC49","v":0}]
[null,null,{"$f":"+'Estado y Minutos'!B50","v":"Jugador 4"},{"$f":"'Estado y Minutos'!Y50","v":0},{"$f":"'Estado y Minutos'!Z50","v":0},{"$f":"'Estado y Minutos'!AA50","v":0},{"$f":"'Estado y Minutos'!AB50","v":0},{"$f":"'Estado y Minutos'!AC50","v":0}]
[null,null,{"$f":"+'Estado y Minutos'!B51","v":"Jugador 5"},{"$f":"'Estado y Minutos'!Y51","v":0},{"$f":"'Estado y Minutos'!Z51","v":0},{"$f":"'Estado y Minutos'!AA51","v":0},{"$f":"'Estado y Minutos'!AB51","v":0},{"$f":"'Estado y Minutos'!AC51","v":0}]
[null,null,{"$f":"+'Estado y Minutos'!B52","v":"Jugador 6"},{"$f":"'Estado y Minutos'!Y52","v":0},{"$f":"'Estado y Minutos'!Z52","v":0},{"$f":"'Estado y Minutos'!AA52","v":0},{"$f":"'Estado y Minutos'!AB52","v":0},{"$f":"'Estado y Minutos'!AC52","v":0}]
[null,null,{"$f":"+'Estado y Minutos'!B53","v":"Jugador 7"},{"$f":"'Estado y Minutos'!Y53","v":0},{"$f":"'Estado y Minutos'!Z53","v":0},{"$f":"'Estado y Minutos'!AA53","v":0},{"$f":"'Estado y Minutos'!AB53","v":0},{"$f":"'Estado y Minutos'!AC53","v":0}]
[null,null,{"$f":"+'Estado y Minutos'!B54","v":"Jugador 8"},{"$f":"'Estado y Minutos'!Y54","v":0},{"$f":"'Estado y Minutos'!Z54","v":0},{"$f":"'Estado y Minutos'!AA54","v":0},{"$f":"'Estado y Minutos'!AB54","v":0},{"$f":"'Estado y Minutos'!AC54","v":0}]
[null,null,{"$f":"+'Estado y Minutos'!B55","v":"Jugador 9"},{"$f":"'Estado y Minutos'!Y55","v":0},{"$f":"'Estado y Minutos'!Z55","v":0},{"$f":"'Estado y Minutos'!AA55","v":0},{"$f":"'Estado y Minutos'!AB55","v":0},{"$f":"'Estado y Minutos'!AC55","v":0}]
[null,null,{"$f":"+'Estado y Minutos'!B56","v":"Jugador 10"},{"$f":"'Estado y Minutos'!Y56","v":0},{"$f":"'Estado y Minutos'!Z56","v":0},{"$f":"'Estado y Minutos'!AA56","v":0},{"$f":"'Estado y Minutos'!AB56","v":0},{"$f":"'Estado y Minutos'!AC56","v":0}]
[null,null,{"$f":"+'Estado y Minutos'!B57","v":"Jugador 11"},{"$f":"'Estado y Minutos'!Y57","v":0},{"$f":"'Estado y Minutos'!Z57","v":0},{"$f":"'Estado y Minutos'!AA57","v":0},{"$f":"'Estado y Minutos'!AB57","v":0},{"$f":"'Estado y Minutos'!AC57","v":0}]
[null,null,{"$f":"+'Estado y Minutos'!B58","v":"Jugador 12"},{"$f":"'Estado y Minutos'!Y58","v":0},{"$f":"'Estado y Minutos'!Z58","v":0},{"$f":"'Estado y Minutos'!AA58","v":0},{"$f":"'Estado y Minutos'!AB58","v":0},{"$f":"'Estado y Minutos'!AC58","v":0}]
[null,null,{"$f":"+'Estado y Minutos'!B59","v":"Jugador 13"},{"$f":"'Estado y Minutos'!Y59","v":0},{"$f":"'Estado y Minutos'!Z59","v":0},{"$f":"'Estado y Minutos'!AA59","v":0},{"$f":"'Estado y Minutos'!AB59","v":0},{"$f":"'Estado y Minutos'!AC59","v":0}]
[null,null,{"$f":"+'Estado y Minutos'!B60","v":"Jugador 14"},{"$f":"'Estado y Minutos'!Y60","v":0},{"$f":"'Estado y Minutos'!Z60","v":0},{"$f":"'Estado y Minutos'!AA60","v":0},{"$f":"'Estado y Minutos'!AB60","v":0},{"$f":"'Estado y Minutos'!AC60","v":0}]
[null,null,{"$f":"+'Estado y Minutos'!B61","v":"Jugador 15"},{"$f":"'Estado y Minutos'!Y61","v":0},{"$f":"'Estado y Minutos'!Z61","v":0},{"$f":"'Estado y Minutos'!AA61","v":0},{"$f":"'Estado y Minutos'!AB61","v":0},{"$f":"'Estado y Minutos'!AC61","v":0}]
[null,null,{"$f":"+'Estado y Minutos'!B62","v":"Jugador 16"},{"$f":"'Estado y Minutos'!Y62","v":0},{"$f":"'Estado y Minutos'!Z62","v":0},{"$f":"'Estado y Minutos'!AA62","v":0},{"$f":"'Estado y Minutos'!AB62","v":0},{"$f":"'Estado y Minutos'!AC62","v":0}]
[null,null,{"$f":"+'Estado y Minutos'!B63","v":"Jugador 17"},{"$f":"'Estado y Minutos'!Y63","v":0},{"$f":"'Estado y Minutos'!Z63","v":0},{"$f":"'Estado y Minutos'!AA63","v":0},{"$f":"'Estado y Minutos'!AB63","v":0},{"$f":"'Estado y Minutos'!AC63","v":0}]
[null,null,{"$f":"+'Estado y Minutos'!B64","v":"Jugador 18"},{"$f":"'Estado y Minutos'!Y64","v":0},{"$f":"'Estado y Minutos'!Z64","v":0},{"$f":"'Estado y Minutos'!AA64","v":0},{"$f":"'Estado y Minutos'!AB64","v":0},{"$f":"'Estado y Minutos'!AC64","v":0}]
[null,null,{"$f":"+'Estado y Minutos'!B65","v":"Jugador 19"},{"$f":"'Estado y Minutos'!Y65","v":0},{"$f":"'Estado y Minutos'!Z65","v":0},{"$f":"'Estado y Minutos'!AA65","v":0},{"$f":"'Estado y Minutos'!AB65","v":0},{"$f":"'Estado y Minutos'!AC65","v":0}]
[null,null,{"$f":"+'Estado y Minutos'!B66","v":"Jugador 20"},{"$f":"'Estado y Minutos'!Y66","v":0},{"$f":"'Estado y Minutos'!Z66","v":0},{"$f":"'Estado y Minutos'!AA66","v":0},{"$f":"'Estado y Minutos'!AB66","v":0},{"$f":"'Estado y Minutos'!AC66","v":0}]
[null,null,{"$f":"+'Estado y Minutos'!B67","v":"Jugador 21"},{"$f":"'Estado y Minutos'!Y67","v":0},{"$f":"'Estado y Minutos'!Z67","v":0},{"$f":"'Estado y Minutos'!AA67","v":0},{"$f":"'Estado y Minutos'!AB67","v":0},{"$f":"'Estado y Minutos'!AC67","v":0}]
[null,null,{"$f":"+'Estado y Minutos'!B68","v":"Jugador 22"},{"$f":"'Estado y Minutos'!Y68","v":0},{"$f":"'Estado y Minutos'!Z68","v":0},{"$f":"'Estado y Minutos'!AA68","v":0},{"$f":"'Estado y Minutos'!AB68","v":0},{"$f":"'Estado y Minutos'!AC68","v":0}]
[null,null,{"$f":"+'Estado y Minutos'!B69","v":"Jugador 23"},{"$f":"'Estado y Minutos'!Y69","v":0},{"$f":"'Estado y Minutos'!Z69","v":0},{"$f":"'Estado y Minutos'!AA69","v":0},{"$f":"'Estado y Minutos'!AB69","v":0},{"$f":"'Estado y Minutos'!AC69","v":0}]
[null,null,{"$f":"+'Estado y Minutos'!B70","v":"Jugador 24"},{"$f":"'Estado y Minutos'!Y70","v":0},{"$f":"'Estado y Minutos'!Z70","v":0},{"$f":"'Estado y Minutos'!AA70","v":0},{"$f":"'Estado y Minutos'!AB70","v":0},{"$f":"'Estado y Minutos'!AC70","v":0}]
[null,null,{"$f":"+'Estado y Minutos'!B71","v":"Jugador 25"},{"$f":"'Estado y Minutos'!Y71","v":0},{"$f":"'Estado y Minutos'!Z71","v":0},{"$f":"'Estado y Minutos'!AA71","v":0},{"$f":"'Estado y Minutos'!AB71","v":0},{"$f":"'Estado y Minutos'!AC71","v":0}]

{"sheet":"Tarjetas, Goles y Tendencia","index":2,"n_rows":76,"n_cols":135,"rows_kept":76,"cut":false,"hidden":false,"merged":[[48,23,48,25],[48,27,48,29],[48,31,48,33],[49,3,49,5],[49,7,49,9],[49,11,49,13],[49,15,49,17],[49,19,49,21],[49,23,49,25],[49,27,49,29],[49,31,49,33],[48,3,48,5],[48,7,48,9],[48,11,48,13],[48,15,48,17],[48,19,48,21],[14,119,14,122],[15,119,15,121],[16,119,16,121],[47,3,47,6],[47,7,47,10],[47,11,47,14],[47,15,47,18],[47,19,47,22],[47,23,47,26],[47,27,47,30],[47,31,47,34],[14,111,14,114],[15,111,15,113],[16,111,16,113],[14,115,14,118],[15,115,15,117],[16,115,16,117],[14,103,14,106],[15,103,15,105],[16,103,16,105],[14,107,14,110],[15,107,15,109],[16,107,16,109],[14,95,14,98],[15,95,15,97],[16,95,16,97],[14,99,14,102],[15,99,15,101],[16,99,16,101],[15,87,15,89],[16,87,16,89],[14,91,14,94],[15,91,15,93],[16,91,16,93],[15,79,15,81],[16,79,16,81],[14,83,14,86],[15,83,15,85],[16,83,16,85],[15,71,15,73],[16,71,16,73],[14,75,14,78],[15,75,15,77],[16,75,16,77],[15,63,15,65],[16,63,16,65],[14,67,14,70],[15,67,15,69],[16,67,16,69],[15,55,15,57],[16,55,16,57],[14,59,14,62],[15,59,15,61],[16,59,16,61],[14,47,14,50],[15,47,15,49],[16,47,16,49],[14,51,14,54],[15,51,15,53],[16,51,16,53],[14,39,14,42],[15,39,15,41],[16,39,16,41],[14,43,14,46],[15,43,15,45],[16,43,16,45],[16,11,16,13],[14,31,14,34],[15,31,15,33],[16,31,16,33],[14,35,14,38],[15,35,15,37],[16,35,16,37],[14,23,14,26],[15,23,15,25],[16,23,16,25],[14,27,14,30],[15,27,15,29],[16,27,16,29],[14,3,14,6],[16,3,16,5],[15,3,15,5],[14,135,14,137],[14,138,14,140],[1,2,3,36],[5,3,5,10],[14,132,14,134],[14,55,14,58],[14,63,14,66],[14,71,14,74],[14,79,14,82],[14,87,14,90],[14,7,14,10],[14,15,14,18],[15,15,15,17],[16,15,16,17],[14,19,14,22],[15,19,15,21],[16,19,16,21],[15,7,15,9],[16,7,16,9],[14,11,14,14],[15,11,15,13]]}
[]
[null,null,"REGISTRO DE TARJETAS, GOLES, ASISTENCIAS Y TENDENCIA (AFOPRO.COM)"]
[]
[]
[]
[null,null,null,"Comandos Resultado",null,null,null,null,null,null,null,null,null,null,null,null,null,null,null,null,null,null,null,null,null,null,null,null,null,null,null,null,null,null,null,null,null,null,null,null,null,null,null,null,null,null,null,null,null,null,null,null,null,null,null,null,null,null,null,null,null,null,null,null,null,null,null,null,null,null,null,null,null,null,null,null,null,null,null,null,null,null,null,null,null,null,null,null,null,null,null,null,null,null,null,null,null,null,null,null,null,null,null,null,null,null,null,null,null,null,null,null,null,null,null,null,null,null,null,null,null,null,null,null,"Tendencia",null,null,"Racha"]
[null,null,null,null,null,null,null,null,null,null,null,null,null,null,null,null,null,null,null,null,null,null,null,null,null,null,null,null,null,null,null,null,null,null,null,null,null,null,null,null,null,null,null,null,null,null,null,null,null,null,null,null,null,null,null,null,null,null,null,null,null,null,null,null,null,null,null,null,null,null,null,null,null,null,null,null,null,null,null,null,null,null,null,null,null,null,null,null,null,null,null,null,null,null,null,null,null,null,null,null,null,null,null,null,null,null,null,null,null,null,null,null,null,null,null,null,null,null,null,null,null,null,null,null,"P1",{"$f":"G17","v":0},null,"P1",{"$f":"G16","v":0}]
[null,null,null,null,3,"Ganado",null,null,null,null,null,null,null,null,null,null,null,null,null,null,null,null,null,null,null,null,null,null,null,null,null,null,null,null,null,null,null,null,null,null,null,null,null,null,null,null,null,null,null,null,null,null,null,null,null,null,null,null,null,null,null,null,null,null,null,null,null,null,null,null,null,null,null,null,null,null,null,null,null,null,null,null,null,null,null,null,null,null,null,null,null,null,null,null,null,null,null,null,null,null,null,null,null,null,null,null,null,null,null,null,null,null,null,null,null,null,null,null,null,null,null,null,null,null,"P2",{"$f":"K17","v":0},null,"P2",{"$f":"K16","v":0}]
[null,null,null,null,1,"Empatado",null,null,null,null,null,null,null,null,null,null,null,null,null,null,null,null,null,null,null,null,null,null,null,null,null,null,null,null,null,null,null,null,null,null,null,null,null,null,null,null,null,null,null,null,null,null,null,null,null,null,null,null,null,null,null,null,null,null,null,null,null,null,null,null,null,null,null,null,null,null,null,null,null,null,null,null,null,null,null,null,null,null,null,null,null,null,null,null,null,null,null,null,null,null,null,null,null,null,null,null,null,null,null,null,null,null,null,null,null,null,null,null,null,null,null,null,null,null,"P3",{"$f":"O17","v":0},null,"P3",{"$f":"O16","v":0}]
[null,null,null,null,0,"Perdido",null,null,null,null,null,null,null,null,null,null,null,null,null,null,null,null,null,null,null,null,null,null,null,null,null,null,null,null,null,null,null,null,null,null,null,null,null,null,null,null,null,null,null,null,null,null,null,null,null,null,null,null,null,null,null,null,null,null,null,null,null,null,null,null,null,null,null,null,null,null,null,null,null,null,null,null,null,null,null,null,null,null,null,null,null,null,null,null,null,null,null,null,null,null,null,null,null,null,null,null,null,null,null,null,null,null,null,null,null,null,null,null,null,null,null,null,null,null,"P4",{"$f":"S17","v":0},null,"P4",{"$f":"S16","v":0}]
[null,null,null,null,null,null,null,null,null,null,null,null,null,null,null,null,null,null,null,null,null,null,null,null,null,null,null,null,null,null,null,null,null,null,null,null,null,null,null,null,null,null,null,null,null,null,null,null,null,null,null,null,null,null,null,null,null,null,null,null,null,null,null,null,null,null,null,null,null,null,null,null,null,null,null,null,null,null,null,null,null,null,null,null,null,null,null,null,null,null,null,null,null,null,null,null,null,null,null,null,null,null,null,null,null,null,null,null,null,null,null,null,null,null,null,null,null,null,null,null,null,null,null,null,"P5",{"$f":"W17","v":0},null,"P5",{"$f":"W16","v":0}]
[null,null,null,null,null,null,null,null,null,null,null,null,null,null,null,null,null,null,null,null,null,null,null,null,null,null,null,null,null,null,null,null,null,null,null,null,null,null,null,null,null,null,null,null,null,null,null,null,null,null,null,null,null,null,null,null,null,null,null,null,null,null,null,null,null,null,null,null,null,null,null,null,null,null,null,null,null,null,null,null,null,null,null,null,null,null,null,null,null,null,null,null,null,null,null,null,null,null,null,null,null,null,null,null,null,null,null,null,null,null,null,null,null,null,null,null,null,null,null,null,null,null,null,null,"P6",{"$f":"AA17","v":0},null,"P6",{"$f":"AA16","v":0}]
[null,null,"Liga",null,null,null,null,null,null,null,null,null,null,null,null,null,null,null,null,null,null,null,null,null,null,null,null,null,null,null,null,null,null,null,null,null,null,null,null,null,null,null,null,null,null,null,null,null,null,null,null,null,null,null,null,null,null,null,null,null,null,null,null,null,null,null,null,null,null,null,null,null,null,null,null,null,null,null,null,null,null,null,null,null,null,null,null,null,null,null,null,null,null,null,null,null,null,null,null,null,null,null,null,null,null,null,null,null,null,null,null,null,null,null,null,null,null,null,null,null,null,null,null,null,"P7",{"$f":"AE17","v":0},null,"P7",{"$f":"AE16","v":0}]
[null,null,null,null,null,null,null,null,null,null,null,null,null,null,null,null,null,null,null,null,null,null,null,null,null,null,null,null,null,null,null,null,null,null,null,null,null,null,null,null,null,null,null,null,null,null,null,null,null,null,null,null,null,null,null,null,null,null,null,null,null,null,null,null,null,null,null,null,null,null,null,null,null,null,null,null,null,null,null,null,null,null,null,null,null,null,null,null,null,null,null,null,null,null,null,null,null,null,null,null,null,null,null,null,null,null,null,null,null,null,null,null,null,null,null,null,null,null,null,null,null,null,null,null,"P8",{"$f":"AI17","v":0},null,"P8",{"$f":"AI16","v":0}]
[null,null,null,"Partido 1",null,null,null,"Partido 2",null,null,null,"Partido 3",null,null,null,"Partido 4",null,null,null,"Partido 5",null,null,null,"Partido 6",null,null,null,"Partido 7",null,null,null,"Partido 8",null,null,null,"Partido 9",null,null,null,"Partido 10",null,null,null,"Partido 11",null,null,null,"Partido 12",null,null,null,"Partido 13",null,null,null,"Partido 14",null,null,null,"Partido 15",null,null,null,"Partido 16",null,null,null,"Partido 17",null,null,null,"Partido 18",null,null,null,"Partido 19",null,null,null,"Partido 20",null,null,null,"Partido 21",null,null,null,"Partido 22",null,null,null,"Partido 23",null,null,null,"Partido 24",null,null,null,"Partido 25",null,null,null,"Partido 26",null,null,null,"Partido 27",null,null,null,"Partido 28",null,null,null,"Partido 29",null,null,null,"Partido 30",null,null,null,null,"P9",{"$f":"AM17","v":0},null,"P9",{"$f":"AM16","v":0}]
[null,null,null,"Resultado",null,null,null,"Resultado",null,null,null,"Resultado",null,null,null,"Resultado",null,null,null,"Resultado",null,null,null,"Resultado",null,null,null,"Resultado",null,null,null,"Resultado",null,null,null,"Resultado",null,null,null,"Resultado",null,null,null,"Resultado",null,null,null,"Resultado",null,null,null,"Resultado",null,null,null,"Resultado",null,null,null,"Resultado",null,null,null,"Resultado",null,null,null,"Resultado",null,null,null,"Resultado",null,null,null,"Resultado",null,null,null,"Resultado",null,null,null,"Resultado",null,null,null,"Resultado",null,null,null,"Resultado",null,null,null,"Resultado",null,null,null,"Resultado",null,null,null,"Resultado",null,null,null,"Resultado",null,null,null,"Resultado",null,null,null,"Resultado",null,null,null,"Resultado",null,null,null,null,"P10",{"$f":"AQ17","v":0},null,"P10",{"$f":"AQ16","v":0}]
[null,null,null,"Clasificación",null,null,null,"Clasificación",null,null,null,"Clasificación",null,null,null,"Clasificación",null,null,null,"Clasificación",null,null,null,"Clasificación",null,null,null,"Clasificación",null,null,null,"Clasificación",null,null,null,"Clasificación",null,null,null,"Clasificación",null,null,null,"Clasificación",null,null,null,"Clasificación",null,null,null,"Clasificación",null,null,null,"Clasificación",null,null,null,"Clasificación",null,null,null,"Clasificación",null,null,null,"Clasificación",null,null,null,"Clasificación",null,null,null,"Clasificación",null,null,null,"Clasificación",null,null,null,"Clasificación",null,null,null,"Clasificación",null,null,null,"Clasificación",null,null,null,"Clasificación",null,null,null,"Clasificación",null,null,null,"Clasificación",null,null,null,"Clasificación",null,null,null,"Clasificación",null,null,null,"Clasificación",null,null,null,"Clasificación",null,null,null,null,"P11",{"$f":"AU17","v":0},null,"P11",{"$f":"AU16","v":0}]
[null,null,null,"TA","TR","Goles","Asist","TA","TR","Goles","Asist","TA","TR","Goles","Asist","TA","TR","Goles","Asist","TA","TR","Goles","Asist","TA","TR","Goles","Asist","TA","TR","Goles","Asist","TA","TR","Goles","Asist","TA","TR","Goles","Asist","TA","TR","Goles","Asist","TA","TR","Goles","Asist","TA","TR","Goles","Asist","TA","TR","Goles","Asist","TA","TR","Goles","Asist","TA","TR","Goles","Asist","TA","TR","Goles","Asist","TA","TR","Goles","Asist","TA","TR","Goles","Asist","TA","TR","Goles","Asist","TA","TR","Goles","Asist","TA","TR","Goles","Asist","TA","TR","Goles","Asist","TA","TR","Goles","Asist","TA","TR","Goles","Asist","TA","TR","Goles","Asist","TA","TR","Goles","Asist","TA","TR","Goles","Asist","TA","TR","Goles","Asist","TA","TR","Goles","Asist","TA","TR","Goles","Asist",null,"P12",{"$f":"AY17","v":0},null,"P12",{"$f":"AY16","v":0},null,null,"TA","TR","Goles","Asist"]
[null,null,1,null,null,null,null,null,null,null,null,null,null,null,null,null,null,null,null,null,null,null,null,null,null,null,null,null,null,null,null,null,null,null,null,null,null,null,null,null,null,null,null,null,null,null,null,null,null,null,null,null,null,null,null,null,null,null,null,null,null,null,null,null,null,null,null,null,null,null,null,null,null,null,null,null,null,null,null,null,null,null,null,null,null,null,null,null,null,null,null,null,null,null,null,null,null,null,null,null,null,null,null,null,null,null,null,null,null,null,null,null,null,null,null,null,null,null,null,null,null,null,null,null,"P13",{"$f":"BC17","v":0},null,"P13",{"$f":"BC16","v":0},null,"J1",{"$f":"+D19+H19+L19+P19+T19+X19+AB19+AF19+AJ19+AN19+AR19+AV19+AZ19+BD19+BH19+BL19+BP19+BT19+BX19+CB19+CF19+CJ19+CN19+CR19+CV19+CZ19+DD19+DH19+DL19+DP19","v":0},{"$f":"+E19+I19+M19+Q19+U19+Y19+AC19+AG19+AK19+AO19+AS19+AW19+BA19+BE19+BI19+BM19+BQ19+BU19+BY19+CC19+CG19+CK19+CO19+CS19+CW19+DA19+DE19+DI19+DM19+DQ19","v":0},{"$f":"+F19+J19+N19+R19+V19+Z19+AD19+AH19+AL19+AP19+AT19+AX19+BB19+BF19+BJ19+BN19+BR19+BV19+BZ19+CD19+CH19+CL19+CP19+CT19+CX19+DB19+DF19+DJ19+DN19+DR19","v":0},{"$f":"+G19+K19+O19+S19+W19+AA19+AE19+AI19+AM19+AQ19+AU19+AY19+BC19+BG19+BK19+BO19+BS19+BW19+CA19+CE19+CI19+CM19+CQ19+CU19+CY19+DC19+DG19+DK19+DO19+DS19","v":0}]
[null,null,2,null,null,null,null,null,null,null,null,null,null,null,null,null,null,null,null,null,null,null,null,null,null,null,null,null,null,null,null,null,null,null,null,null,null,null,null,null,null,null,null,null,null,null,null,null,null,null,null,null,null,null,null,null,null,null,null,null,null,null,null,null,null,null,null,null,null,null,null,null,null,null,null,null,null,null,null,null,null,null,null,null,null,null,null,null,null,null,null,null,null,null,null,null,null,null,null,null,null,null,null,null,null,null,null,null,null,null,null,null,null,null,null,null,null,null,null,null,null,null,null,null,"P14",{"$f":"BG17","v":0},null,"P14",{"$f":"BG16","v":0},null,"J2",{"$f":"+D20+H20+L20+P20+T20+X20+AB20+AF20+AJ20+AN20+AR20+AV20+AZ20+BD20+BH20+BL20+BP20+BT20+BX20+CB20+CF20+CJ20+CN20+CR20+CV20+CZ20+DD20+DH20+DL20+DP20","v":0},{"$f":"+E20+I20+M20+Q20+U20+Y20+AC20+AG20+AK20+AO20+AS20+AW20+BA20+BE20+BI20+BM20+BQ20+BU20+BY20+CC20+CG20+CK20+CO20+CS20+CW20+DA20+DE20+DI20+DM20+DQ20","v":0},{"$f":"+F20+J20+N20+R20+V20+Z20+AD20+AH20+AL20+AP20+AT20+AX20+BB20+BF20+BJ20+BN20+BR20+BV20+BZ20+CD20+CH20+CL20+CP20+CT20+CX20+DB20+DF20+DJ20+DN20+DR20","v":0},{"$f":"+G20+K20+O20+S20+W20+AA20+AE20+AI20+AM20+AQ20+AU20+AY20+BC20+BG20+BK20+BO20+BS20+BW20+CA20+CE20+CI20+CM20+CQ20+CU20+CY20+DC20+DG20+DK20+DO20+DS20","v":0}]
[null,null,3,null,null,null,null,null,null,null,null,null,null,null,null,null,null,null,null,null,null,null,null,null,null,null,null,null,null,null,null,null,null,null,null,null,null,null,null,null,null,null,null,null,null,null,null,null,null,null,null,null,null,null,null,null,null,null,null,null,null,null,null,null,null,null,null,null,null,null,null,null,null,null,null,null,null,null,null,null,null,null,null,null,null,null,null,null,null,null,null,null,null,null,null,null,null,null,null,null,null,null,null,null,null,null,null,null,null,null,null,null,null,null,null,null,null,null,null,null,null,null,null,null,"P15",{"$f":"BK17","v":0},null,"P15",{"$f":"BK16","v":0},null,"J3",0,0,0,0]
[null,null,4,null,null,null,null,null,null,null,null,null,null,null,null,null,null,null,null,null,null,null,null,null,null,null,null,null,null,null,null,null,null,null,null,null,null,null,null,null,null,null,null,null,null,null,null,null,null,null,null,null,null,null,null,null,null,null,null,null,null,null,null,null,null,null,null,null,null,null,null,null,null,null,null,null,null,null,null,null,null,null,null,null,null,null,null,null,null,null,null,null,null,null,null,null,null,null,null,null,null,null,null,null,null,null,null,null,null,null,null,null,null,null,null,null,null,null,null,null,null,null,null,null,"P16",{"$f":"BO17","v":0},null,"P16",{"$f":"BO16","v":0},null,"J4",0,0,0,0]
[null,null,5,null,null,null,null,null,null,null,null,null,null,null,null,null,null,null,null,null,null,null,null,null,null,null,null,null,null,null,null,null,null,null,null,null,null,null,null,null,null,null,null,null,null,null,null,null,null,null,null,null,null,null,null,null,null,null,null,null,null,null,null,null,null,null,null,null,null,null,null,null,null,null,null,null,null,null,null,null,null,null,null,null,null,null,null,null,null,null,null,null,null,null,null,null,null,null,null,null,null,null,null,null,null,null,null,null,null,null,null,null,null,null,null,null,null,null,null,null,null,null,null,null,"P17",{"$f":"BS17","v":0},null,"P17",{"$f":"BS16","v":0},null,"J5",0,0,0,0]
[null,null,6,null,null,null,null,null,null,null,null,null,null,null,null,null,null,null,null,null,null,null,null,null,null,null,null,null,null,null,null,null,null,null,null,null,null,null,null,null,null,null,null,null,null,null,null,null,null,null,null,null,null,null,null,null,null,null,null,null,null,null,null,null,null,null,null,null,null,null,null,null,null,null,null,null,null,null,null,null,null,null,null,null,null,null,null,null,null,null,null,null,null,null,null,null,null,null,null,null,null,null,null,null,null,null,null,null,null,null,null,null,null,null,null,null,null,null,null,null,null,null,null,null,"P18",{"$f":"BW17","v":0},null,"P18",{"$f":"BEX16","v":0},null,"J6",0,0,0,0]
[null,null,7,null,null,null,null,null,null,null,null,null,null,null,null,null,null,null,null,null,null,null,null,null,null,null,null,null,null,null,null,null,null,null,null,null,null,null,null,null,null,null,null,null,null,null,null,null,null,null,null,null,null,null,null,null,null,null,null,null,null,null,null,null,null,null,null,null,null,null,null,null,null,null,null,null,null,null,null,null,null,null,null,null,null,null,null,null,null,null,null,null,null,null,null,null,null,null,null,null,null,null,null,null,null,null,null,null,null,null,null,null,null,null,null,null,null,null,null,null,null,null,null,null,"P19",{"$f":"CA17","v":0},null,"P19",{"$f":"CA16","v":0},null,"J7",0,0,0,0]
[null,null,8,null,null,null,null,null,null,null,null,null,null,null,null,null,null,null,null,null,null,null,null,null,null,null,null,null,null,null,null,null,null,null,null,null,null,null,null,null,null,null,null,null,null,null,null,null,null,null,null,null,null,null,null,null,null,null,null,null,null,null,null,null,null,null,null,null,null,null,null,null,null,null,null,null,null,null,null,null,null,null,null,null,null,null,null,null,null,null,null,null,null,null,null,null,null,null,null,null,null,null,null,null,null,null,null,null,null,null,null,null,null,null,null,null,null,null,null,null,null,null,null,null,"P20",{"$f":"CE17","v":0},null,"P20",{"$f":"CE16","v":0},null,"J8",0,0,0,0]
[null,null,9,null,null,null,null,null,null,null,null,null,null,null,null,null,null,null,null,null,null,null,null,null,null,null,null,null,null,null,null,null,null,null,null,null,null,null,null,null,null,null,null,null,null,null,null,null,null,null,null,null,null,null,null,null,null,null,null,null,null,null,null,null,null,null,null,null,null,null,null,null,null,null,null,null,null,null,null,null,null,null,null,null,null,null,null,null,null,null,null,null,null,null,null,null,null,null,null,null,null,null,null,null,null,null,null,null,null,null,null,null,null,null,null,null,null,null,null,null,null,null,null,null,"P21",{"$f":"CI17","v":0},null,"P21",{"$f":"CI16","v":0},null,"J9",0,0,0,0]
[null,null,10,null,null,null,null,null,null,null,null,null,null,null,null,null,null,null,null,null,null,null,null,null,null,null,null,null,null,null,null,null,null,null,null,null,null,null,null,null,null,null,null,null,null,null,null,null,null,null,null,null,null,null,null,null,null,null,null,null,null,null,null,null,null,null,null,null,null,null,null,null,null,null,null,null,null,null,null,null,null,null,null,null,null,null,null,null,null,null,null,null,null,null,null,null,null,null,null,null,null,null,null,null,null,null,null,null,null,null,null,null,null,null,null,null,null,null,null,null,null,null,null,null,"P22",{"$f":"CM17","v":0},null,"P22",{"$f":"CM16","v":0},null,"J10",0,0,0,0]
[null,null,11,null,null,null,null,null,null,null,null,null,null,null,null,null,null,null,null,null,null,null,null,null,null,null,null,null,null,null,null,null,null,null,null,null,null,null,null,null,null,null,null,null,null,null,null,null,null,null,null,null,null,null,null,null,null,null,null,null,null,null,null,null,null,null,null,null,null,null,null,null,null,null,null,null,null,null,null,null,null,null,null,null,null,null,null,null,null,null,null,null,null,null,null,null,null,null,null,null,null,null,null,null,null,null,null,null,null,null,null,null,null,null,null,null,null,null,null,null,null,null,null,null,"P23",{"$f":"CQ17","v":0},null,"P23",{"$f":"CQ16","v":0},null,"J11",0,0,0,0]
[null,null,12,null,null,null,null,null,null,null,null,null,null,null,null,null,null,null,null,null,null,null,null,null,null,null,null,null,null,null,null,null,null,null,null,null,null,null,null,null,null,null,null,null,null,null,null,null,null,null,null,null,null,null,null,null,null,null,null,null,null,null,null,null,null,null,null,null,null,null,null,null,null,null,null,null,null,null,null,null,null,null,null,null,null,null,null,null,null,null,null,null,null,null,null,null,null,null,null,null,null,null,null,null,null,null,null,null,null,null,null,null,null,null,null,null,null,null,null,null,null,null,null,null,"P24",{"$f":"CU17","v":0},null,"P24",{"$f":"+CU16","v":0},null,"J12",0,0,0,0]
[null,null,13,null,null,null,null,null,null,null,null,null,null,null,null,null,null,null,null,null,null,null,null,null,null,null,null,null,null,null,null,null,null,null,null,null,null,null,null,null,null,null,null,null,null,null,null,null,null,null,null,null,null,null,null,null,null,null,null,null,null,null,null,null,null,null,null,null,null,null,null,null,null,null,null,null,null,null,null,null,null,null,null,null,null,null,null,null,null,null,null,null,null,null,null,null,null,null,null,null,null,null,null,null,null,null,null,null,null,null,null,null,null,null,null,null,null,null,null,null,null,null,null,null,"P25",{"$f":"CY17","v":0},null,"P25",{"$f":"+CY16","v":0},null,"J13",0,0,0,0]
[null,null,14,null,null,null,null,null,null,null,null,null,null,null,null,null,null,null,null,null,null,null,null,null,null,null,null,null,null,null,null,null,null,null,null,null,null,null,null,null,null,null,null,null,null,null,null,null,null,null,null,null,null,null,null,null,null,null,null,null,null,null,null,null,null,null,null,null,null,null,null,null,null,null,null,null,null,null,null,null,null,null,null,null,null,null,null,null,null,null,null,null,null,null,null,null,null,null,null,null,null,null,null,null,null,null,null,null,null,null,null,null,null,null,null,null,null,null,null,null,null,null,null,null,"P26",{"$f":"+DC17","v":0},null,"P26",{"$f":"+DC16","v":0},null,"J14",0,0,0,0]
[null,null,{"$f":"+'Gráficos Estado y Minutos'!C23","v":"Jugador 15"},null,null,null,null,null,null,null,null,null,null,null,null,null,null,null,null,null,null,null,null,null,null,null,null,null,null,null,null,null,null,null,null,null,null,null,null,null,null,null,null,null,null,null,null,null,null,null,null,null,null,null,null,null,null,null,null,null,null,null,null,null,null,null,null,null,null,null,null,null,null,null,null,null,null,null,null,null,null,null,null,null,null,null,null,null,null,null,null,null,null,null,null,null,null,null,null,null,null,null,null,null,null,null,null,null,null,null,null,null,null,null,null,null,null,null,null,null,null,null,null,null,"P27",{"$f":"+DG17","v":0},null,"P27",{"$f":"+DG16","v":0},null,"J15",0,0,0,0]
[null,null,{"$f":"+'Gráficos Estado y Minutos'!C24","v":"Jugador 16"},null,null,null,null,null,null,null,null,null,null,null,null,null,null,null,null,null,null,null,null,null,null,null,null,null,null,null,null,null,null,null,null,null,null,null,null,null,null,null,null,null,null,null,null,null,null,null,null,null,null,null,null,null,null,null,null,null,null,null,null,null,null,null,null,null,null,null,null,null,null,null,null,null,null,null,null,null,null,null,null,null,null,null,null,null,null,null,null,null,null,null,null,null,null,null,null,null,null,null,null,null,null,null,null,null,null,null,null,null,null,null,null,null,null,null,null,null,null,null,null,null,"P28",{"$f":"+DK17","v":0},null,"P28",{"$f":"+DK16","v":0},null,"J16",0,0,0,0]
[null,null,{"$f":"+'Gráficos Estado y Minutos'!C25","v":"Jugador 17"},null,null,null,null,null,null,null,null,null,null,null,null,null,null,null,null,null,null,null,null,null,null,null,null,null,null,null,null,null,null,null,null,null,null,null,null,null,null,null,null,null,null,null,null,null,null,null,null,null,null,null,null,null,null,null,null,null,null,null,null,null,null,null,null,null,null,null,null,null,null,null,null,null,null,null,null,null,null,null,null,null,null,null,null,null,null,null,null,null,null,null,null,null,null,null,null,null,null,null,null,null,null,null,null,null,null,null,null,null,null,null,null,null,null,null,null,null,null,null,null,null,"P29",{"$f":"+DO17","v":0},null,"P29",{"$f":"+DO16","v":0},null,"J17",0,0,0,0]
[null,null,{"$f":"+'Gráficos Estado y Minutos'!C26","v":"Jugador 18"},null,null,null,null,null,null,null,null,null,null,null,null,null,null,null,null,null,null,null,null,null,null,null,null,null,null,null,null,null,null,null,null,null,null,null,null,null,null,null,null,null,null,null,null,null,null,null,null,null,null,null,null,null,null,null,null,null,null,null,null,null,null,null,null,null,null,null,null,null,null,null,null,null,null,null,null,null,null,null,null,null,null,null,null,null,null,null,null,null,null,null,null,null,null,null,null,null,null,null,null,null,null,null,null,null,null,null,null,null,null,null,null,null,null,null,null,null,null,null,null,null,"P30",{"$f":"+DS17","v":0},null,"P30",{"$f":"+DS16","v":0},null,"J18",0,0,0,0]
[null,null,{"$f":"+'Gráficos Estado y Minutos'!C27","v":"Jugador 19"},null,null,null,null,null,null,null,null,null,null,null,null,null,null,null,null,null,null,null,null,null,null,null,null,null,null,null,null,null,null,null,null,null,null,null,null,null,null,null,null,null,null,null,null,null,null,null,null,null,null,null,null,null,null,null,null,null,null,null,null,null,null,null,null,null,null,null,null,null,null,null,null,null,null,null,null,null,null,null,null,null,null,null,null,null,null,null,null,null,null,null,null,null,null,null,null,null,null,null,null,null,null,null,null,null,null,null,null,null,null,null,null,null,null,null,null,null,null,null,null,null,null,null,null,null,null,null,"J19",0,0,0,0]
[null,null,{"$f":"+'Gráficos Estado y Minutos'!C28","v":"Jugador 20"},null,null,null,null,null,null,null,null,null,null,null,null,null,null,null,null,null,null,null,null,null,null,null,null,null,null,null,null,null,null,null,null,null,null,null,null,null,null,null,null,null,null,null,null,null,null,null,null,null,null,null,null,null,null,null,null,null,null,null,null,null,null,null,null,null,null,null,null,null,null,null,null,null,null,null,null,null,null,null,null,null,null,null,null,null,null,null,null,null,null,null,null,null,null,null,null,null,null,null,null,null,null,null,null,null,null,null,null,null,null,null,null,null,null,null,null,null,null,null,null,null,null,null,null,null,null,null,"J20",0,0,0,0]
[null,null,{"$f":"+'Gráficos Estado y Minutos'!C29","v":"Jugador 21"},null,null,null,null,null,null,null,null,null,null,null,null,null,null,null,null,null,null,null,null,null,null,null,null,null,null,null,null,null,null,null,null,null,null,null,null,null,null,null,null,null,null,null,null,null,null,null,null,null,null,null,null,null,null,null,null,null,null,null,null,null,null,null,null,null,null,null,null,null,null,null,null,null,null,null,null,null,null,null,null,null,null,null,null,null,null,null,null,null,null,null,null,null,null,null,null,null,null,null,null,null,null,null,null,null,null,null,null,null,null,null,null,null,null,null,null,null,null,null,null,null,null,null,null,null,null,null,"J21",0,0,0,0]
[null,null,{"$f":"+'Gráficos Estado y Minutos'!C30","v":"Jugador 22"},null,null,null,null,null,null,null,null,null,null,null,null,null,null,null,null,null,null,null,null,null,null,null,null,null,null,null,null,null,null,null,null,null,null,null,null,null,null,null,null,null,null,null,null,null,null,null,null,null,null,null,null,null,null,null,null,null,null,null,null,null,null,null,null,null,null,null,null,null,null,null,null,null,null,null,null,null,null,null,null,null,null,null,null,null,null,null,null,null,null,null,null,null,null,null,null,null,null,null,null,null,null,null,null,null,null,null,null,null,null,null,null,null,null,null,null,null,null,null,null,null,null,null,null,null,null,null,"J22",0,0,0,0]
[null,null,{"$f":"+'Gráficos Estado y Minutos'!C31","v":"Jugador 23"},null,null,null,null,null,null,null,null,null,null,null,null,null,null,null,null,null,null,null,null,null,null,null,null,null,null,null,null,null,null,null,null,null,null,null,null,null,null,null,null,null,null,null,null,null,null,null,null,null,null,null,null,null,null,null,null,null,null,null,null,null,null,null,null,null,null,null,null,null,null,null,null,null,null,null,null,null,null,null,null,null,null,null,null,null,null,null,null,null,null,null,null,null,null,null,null,null,null,null,null,null,null,null,null,null,null,null,null,null,null,null,null,null,null,null,null,null,null,null,null,null,null,null,null,null,null,null,"J23",0,0,0,0]
[null,null,{"$f":"+'Gráficos Estado y Minutos'!C32","v":"Jugador 24"},null,null,null,null,null,null,null,null,null,null,null,null,null,null,null,null,null,null,null,null,null,null,null,null,null,null,null,null,null,null,null,null,null,null,null,null,null,null,null,null,null,null,null,null,null,null,null,null,null,null,null,null,null,null,null,null,null,null,null,null,null,null,null,null,null,null,null,null,null,null,null,null,null,null,null,null,null,null,null,null,null,null,null,null,null,null,null,null,null,null,null,null,null,null,null,null,null,null,null,null,null,null,null,null,null,null,null,null,null,null,null,null,null,null,null,null,null,null,null,null,null,null,null,null,null,null,null,"J24",0,0,0,0]
[null,null,{"$f":"+'Gráficos Estado y Minutos'!C33","v":"Jugador 25"},null,null,null,null,null,null,null,null,null,null,null,null,null,null,null,null,null,null,null,null,null,null,null,null,null,null,null,null,null,null,null,null,null,null,null,null,null,null,null,null,null,null,null,null,null,null,null,null,null,null,null,null,null,null,null,null,null,null,null,null,null,null,null,null,null,null,null,null,null,null,null,null,null,null,null,null,null,null,null,null,null,null,null,null,null,null,null,null,null,null,null,null,null,null,null,null,null,null,null,null,null,null,null,null,null,null,null,null,null,null,null,null,null,null,null,null,null,null,null,null,null,null,null,null,null,null,null,"J25",0,0,0,0]
[]
[]
[]
[null,null,"Amistosos"]
[null,null,null,"Amistoso 1",null,null,null,"Amistoso 2",null,null,null,"Amistoso 3",null,null,null,"Amistoso 4",null,null,null,"Amistoso 5",null,null,null,"Amistoso 6",null,null,null,"Amistoso 7",null,null,null,"Amistoso 8"]
[null,null,null,"Resultado",null,null,null,"Resultado",null,null,null,"Resultado",null,null,null,"Resultado",null,null,null,"Resultado",null,null,null,"Resultado",null,null,null,"Resultado",null,null,null,"Resultado"]
[null,null,null,"Clasificación",null,null,null,"Clasificación",null,null,null,"Clasificación",null,null,null,"Clasificación",null,null,null,"Clasificación",null,null,null,"Clasificación",null,null,null,"Clasificación",null,null,null,"Clasificación"]
[null,null,null,"TA","TR","Goles","Asist","TA","TR","Goles","Asist","TA","TR","Goles","Asist","TA","TR","Goles","Asist","TA","TR","Goles","Asist","TA","TR","Goles","Asist","TA","TR","Goles","Asist","TA","TR","Goles","Asist",null,null,null,"TA","TR","Goles","Asist"]
[null,null,{"$f":"+'Gráficos Estado y Minutos'!$C$42","v":"Jugador 1"},null,null,null,null,null,null,null,null,null,null,null,null,null,null,null,null,null,null,null,null,null,null,null,null,null,null,null,null,null,null,null,null,null,null,null,{"$f":"+D52+H52+L52+P52+T52+X52+AB52+AF52","v":0},{"$f":"+E52+I52+M52+Q52+U52+Y52+AC52+AG52","v":0},0,0]
[null,null,{"$f":"+'Gráficos Estado y Minutos'!$C$43","v":"Jugador 2"},null,null,null,null,null,null,null,null,null,null,null,null,null,null,null,null,null,null,null,null,null,null,null,null,null,null,null,null,null,null,null,null,null,null,null,{"$f":"+D53+H53+L53+P53+T53+X53+AB53+AF53","v":0},0,0,0]
[null,null,{"$f":"+'Gráficos Estado y Minutos'!$C$44","v":"Jugador 3"},null,null,null,null,null,null,null,null,null,null,null,null,null,null,null,null,null,null,null,null,null,null,null,null,null,null,null,null,null,null,null,null,null,null,null,0,0,0,0]
[null,null,{"$f":"+'Gráficos Estado y Minutos'!$C$45","v":"Jugador 4"},null,null,null,null,null,null,null,null,null,null,null,null,null,null,null,null,null,null,null,null,null,null,null,null,null,null,null,null,null,null,null,null,null,null,null,0,0,0,0]
[null,null,{"$f":"+'Gráficos Estado y Minutos'!$C$46","v":"Jugador 5"},null,null,null,null,null,null,null,null,null,null,null,null,null,null,null,null,null,null,null,null,null,null,null,null,null,null,null,null,null,null,null,null,null,null,null,0,0,0,0]
[null,null,{"$f":"+'Gráficos Estado y Minutos'!$C$47","v":"Jugador 6"},null,null,null,null,null,null,null,null,null,null,null,null,null,null,null,null,null,null,null,null,null,null,null,null,null,null,null,null,null,null,null,null,null,null,null,0,0,0,0]
[null,null,{"$f":"+'Gráficos Estado y Minutos'!$C$48","v":"Jugador 7"},null,null,null,null,null,null,null,null,null,null,null,null,null,null,null,null,null,null,null,null,null,null,null,null,null,null,null,null,null,null,null,null,null,null,null,0,0,0,0]
[null,null,{"$f":"+'Gráficos Estado y Minutos'!$C$49","v":"Jugador 8"},null,null,null,null,null,null,null,null,null,null,null,null,null,null,null,null,null,null,null,null,null,null,null,null,null,null,null,null,null,null,null,null,null,null,null,0,0,0,0]
[null,null,{"$f":"+'Gráficos Estado y Minutos'!$C$50","v":"Jugador 9"},null,null,null,null,null,null,null,null,null,null,null,null,null,null,null,null,null,null,null,null,null,null,null,null,null,null,null,null,null,null,null,null,null,null,null,0,0,0,0]
[null,null,{"$f":"+'Gráficos Estado y Minutos'!$C$51","v":"Jugador 10"},null,null,null,null,null,null,null,null,null,null,null,null,null,null,null,null,null,null,null,null,null,null,null,null,null,null,null,null,null,null,null,null,null,null,null,0,0,0,0]
[null,null,{"$f":"+'Gráficos Estado y Minutos'!$C$52","v":"Jugador 11"},null,null,null,null,null,null,null,null,null,null,null,null,null,null,null,null,null,null,null,null,null,null,null,null,null,null,null,null,null,null,null,null,null,null,null,0,0,0,0]
[null,null,{"$f":"+'Gráficos Estado y Minutos'!$C$53","v":"Jugador 12"},null,null,null,null,null,null,null,null,null,null,null,null,null,null,null,null,null,null,null,null,null,null,null,null,null,null,null,null,null,null,null,null,null,null,null,0,0,0,0]
[null,null,{"$f":"+'Gráficos Estado y Minutos'!$C$54","v":"Jugador 13"},null,null,null,null,null,null,null,null,null,null,null,null,null,null,null,null,null,null,null,null,null,null,null,null,null,null,null,null,null,null,null,null,null,null,null,0,0,0,0]
[null,null,{"$f":"+'Gráficos Estado y Minutos'!$C$55","v":"Jugador 14"},null,null,null,null,null,null,null,null,null,null,null,null,null,null,null,null,null,null,null,null,null,null,null,null,null,null,null,null,null,null,null,null,null,null,null,0,0,0,0]
[null,null,{"$f":"+'Gráficos Estado y Minutos'!$C$56","v":"Jugador 15"},null,null,null,null,null,null,null,null,null,null,null,null,null,null,null,null,null,null,null,null,null,null,null,null,null,null,null,null,null,null,null,null,null,null,null,0,0,0,0]
[null,null,{"$f":"+'Gráficos Estado y Minutos'!$C$57","v":"Jugador 16"},null,null,null,null,null,null,null,null,null,null,null,null,null,null,null,null,null,null,null,null,null,null,null,null,null,null,null,null,null,null,null,null,null,null,null,0,0,0,0]
[null,null,{"$f":"+'Gráficos Estado y Minutos'!$C$58","v":"Jugador 17"},null,null,null,null,null,null,null,null,null,null,null,null,null,null,null,null,null,null,null,null,null,null,null,null,null,null,null,null,null,null,null,null,null,null,null,0,0,0,0]
[null,null,{"$f":"+'Gráficos Estado y Minutos'!$C$59","v":"Jugador 18"},null,null,null,null,null,null,null,null,null,null,null,null,null,null,null,null,null,null,null,null,null,null,null,null,null,null,null,null,null,null,null,null,null,null,null,0,0,0,0]
[null,null,{"$f":"+'Gráficos Estado y Minutos'!$C$60","v":"Jugador 19"},null,null,null,null,null,null,null,null,null,null,null,null,null,null,null,null,null,null,null,null,null,null,null,null,null,null,null,null,null,null,null,null,null,null,null,0,0,0,0]
[null,null,{"$f":"+'Gráficos Estado y Minutos'!$C$61","v":"Jugador 20"},null,null,null,null,null,null,null,null,null,null,null,null,null,null,null,null,null,null,null,null,null,null,null,null,null,null,null,null,null,null,null,null,null,null,null,0,0,0,0]
[null,null,{"$f":"+'Gráficos Estado y Minutos'!$C$62","v":"Jugador 21"},null,null,null,null,null,null,null,null,null,null,null,null,null,null,null,null,null,null,null,null,null,null,null,null,null,null,null,null,null,null,null,null,null,null,null,0,0,0,0]
[null,null,{"$f":"+'Gráficos Estado y Minutos'!$C$63","v":"Jugador 22"},null,null,null,null,null,null,null,null,null,null,null,null,null,null,null,null,null,null,null,null,null,null,null,null,null,null,null,null,null,null,null,null,null,null,null,0,0,0,0]
[null,null,{"$f":"+'Gráficos Estado y Minutos'!$C$64","v":"Jugador 23"},null,null,null,null,null,null,null,null,null,null,null,null,null,null,null,null,null,null,null,null,null,null,null,null,null,null,null,null,null,null,null,null,null,null,null,0,0,0,0]
[null,null,{"$f":"+'Gráficos Estado y Minutos'!$C$65","v":"Jugador 24"},null,null,null,null,null,null,null,null,null,null,null,null,null,null,null,null,null,null,null,null,null,null,null,null,null,null,null,null,null,null,null,null,null,null,null,0,0,0,0]
[null,null,{"$f":"+'Gráficos Estado y Minutos'!$C$66","v":"Jugador 25"},null,null,null,null,null,null,null,null,null,null,null,null,null,null,null,null,null,null,null,null,null,null,null,null,null,null,null,null,null,null,null,null,null,null,null,0,0,0,0]

{"sheet":"Gráficos Tarjetas, Goles y Ten.","index":3,"n_rows":147,"n_cols":7,"rows_kept":147,"cut":false,"hidden":false,"merged":[[1,2,3,36]]}
[]
[null,null,"GRÁFICOS DE TARJETAS, GOLES Y TENDENCIA (AFOPRO.COM)"]
[]
[]
[]
[null,null,"Liga"]
[]
[null,null,null,"TA","TR","Goles","Asist"]
[null,null,{"$f":"+'Tarjetas, Goles y Tendencia'!C19","v":1},{"$f":"+'Tarjetas, Goles y Tendencia'!EB19","v":0},{"$f":"+'Tarjetas, Goles y Tendencia'!EC19","v":0},{"$f":"+'Tarjetas, Goles y Tendencia'!ED19","v":0},{"$f":"+'Tarjetas, Goles y Tendencia'!EE19","v":0}]
[null,null,{"$f":"+'Tarjetas, Goles y Tendencia'!C20","v":2},{"$f":"+'Tarjetas, Goles y Tendencia'!EB20","v":0},{"$f":"+'Tarjetas, Goles y Tendencia'!EC20","v":0},{"$f":"+'Tarjetas, Goles y Tendencia'!ED20","v":0},{"$f":"+'Tarjetas, Goles y Tendencia'!EE20","v":0}]
[null,null,{"$f":"+'Tarjetas, Goles y Tendencia'!C21","v":3},{"$f":"+'Tarjetas, Goles y Tendencia'!EB21","v":0},{"$f":"+'Tarjetas, Goles y Tendencia'!EC21","v":0},{"$f":"+'Tarjetas, Goles y Tendencia'!ED21","v":0},{"$f":"+'Tarjetas, Goles y Tendencia'!EE21","v":0}]
[null,null,{"$f":"+'Tarjetas, Goles y Tendencia'!C22","v":4},{"$f":"+'Tarjetas, Goles y Tendencia'!EB22","v":0},{"$f":"+'Tarjetas, Goles y Tendencia'!EC22","v":0},{"$f":"+'Tarjetas, Goles y Tendencia'!ED22","v":0},{"$f":"+'Tarjetas, Goles y Tendencia'!EE22","v":0}]
[null,null,{"$f":"+'Tarjetas, Goles y Tendencia'!C23","v":5},{"$f":"+'Tarjetas, Goles y Tendencia'!EB23","v":0},{"$f":"+'Tarjetas, Goles y Tendencia'!EC23","v":0},{"$f":"+'Tarjetas, Goles y Tendencia'!ED23","v":0},{"$f":"+'Tarjetas, Goles y Tendencia'!EE23","v":0}]
[null,null,{"$f":"+'Tarjetas, Goles y Tendencia'!C24","v":6},{"$f":"+'Tarjetas, Goles y Tendencia'!EB24","v":0},{"$f":"+'Tarjetas, Goles y Tendencia'!EC24","v":0},{"$f":"+'Tarjetas, Goles y Tendencia'!ED24","v":0},{"$f":"+'Tarjetas, Goles y Tendencia'!EE24","v":0}]
[null,null,{"$f":"+'Tarjetas, Goles y Tendencia'!C25","v":7},{"$f":"+'Tarjetas, Goles y Tendencia'!EB25","v":0},{"$f":"+'Tarjetas, Goles y Tendencia'!EC25","v":0},{"$f":"+'Tarjetas, Goles y Tendencia'!ED25","v":0},{"$f":"+'Tarjetas, Goles y Tendencia'!EE25","v":0}]
[null,null,{"$f":"+'Tarjetas, Goles y Tendencia'!C26","v":8},{"$f":"+'Tarjetas, Goles y Tendencia'!EB26","v":0},{"$f":"+'Tarjetas, Goles y Tendencia'!EC26","v":0},{"$f":"+'Tarjetas, Goles y Tendencia'!ED26","v":0},{"$f":"+'Tarjetas, Goles y Tendencia'!EE26","v":0}]
[null,null,{"$f":"+'Tarjetas, Goles y Tendencia'!C27","v":9},{"$f":"+'Tarjetas, Goles y Tendencia'!EB27","v":0},{"$f":"+'Tarjetas, Goles y Tendencia'!EC27","v":0},{"$f":"+'Tarjetas, Goles y Tendencia'!ED27","v":0},{"$f":"+'Tarjetas, Goles y Tendencia'!EE27","v":0}]
[null,null,{"$f":"+'Tarjetas, Goles y Tendencia'!C28","v":10},{"$f":"+'Tarjetas, Goles y Tendencia'!EB28","v":0},{"$f":"+'Tarjetas, Goles y Tendencia'!EC28","v":0},{"$f":"+'Tarjetas, Goles y Tendencia'!ED28","v":0},{"$f":"+'Tarjetas, Goles y Tendencia'!EE28","v":0}]
[null,null,{"$f":"+'Tarjetas, Goles y Tendencia'!C29","v":11},{"$f":"+'Tarjetas, Goles y Tendencia'!EB29","v":0},{"$f":"+'Tarjetas, Goles y Tendencia'!EC29","v":0},{"$f":"+'Tarjetas, Goles y Tendencia'!ED29","v":0},{"$f":"+'Tarjetas, Goles y Tendencia'!EE29","v":0}]
[null,null,{"$f":"+'Tarjetas, Goles y Tendencia'!C30","v":12},{"$f":"+'Tarjetas, Goles y Tendencia'!EB30","v":0},{"$f":"+'Tarjetas, Goles y Tendencia'!EC30","v":0},{"$f":"+'Tarjetas, Goles y Tendencia'!ED30","v":0},{"$f":"+'Tarjetas, Goles y Tendencia'!EE30","v":0}]
[null,null,{"$f":"+'Tarjetas, Goles y Tendencia'!C31","v":13},{"$f":"+'Tarjetas, Goles y Tendencia'!EB31","v":0},{"$f":"+'Tarjetas, Goles y Tendencia'!EC31","v":0},{"$f":"+'Tarjetas, Goles y Tendencia'!ED31","v":0},{"$f":"+'Tarjetas, Goles y Tendencia'!EE31","v":0}]
[null,null,{"$f":"+'Tarjetas, Goles y Tendencia'!C32","v":14},{"$f":"+'Tarjetas, Goles y Tendencia'!EB32","v":0},{"$f":"+'Tarjetas, Goles y Tendencia'!EC32","v":0},{"$f":"+'Tarjetas, Goles y Tendencia'!ED32","v":0},{"$f":"+'Tarjetas, Goles y Tendencia'!EE32","v":0}]
[null,null,{"$f":"+'Tarjetas, Goles y Tendencia'!C33","v":"Jugador 15"},{"$f":"+'Tarjetas, Goles y Tendencia'!EB33","v":0},{"$f":"+'Tarjetas, Goles y Tendencia'!EC33","v":0},{"$f":"+'Tarjetas, Goles y Tendencia'!ED33","v":0},{"$f":"+'Tarjetas, Goles y Tendencia'!EE33","v":0}]
[null,null,{"$f":"+'Tarjetas, Goles y Tendencia'!C34","v":"Jugador 16"},{"$f":"+'Tarjetas, Goles y Tendencia'!EB34","v":0},{"$f":"+'Tarjetas, Goles y Tendencia'!EC34","v":0},{"$f":"+'Tarjetas, Goles y Tendencia'!ED34","v":0},{"$f":"+'Tarjetas, Goles y Tendencia'!EE34","v":0}]
[null,null,{"$f":"+'Tarjetas, Goles y Tendencia'!C35","v":"Jugador 17"},{"$f":"+'Tarjetas, Goles y Tendencia'!EB35","v":0},{"$f":"+'Tarjetas, Goles y Tendencia'!EC35","v":0},{"$f":"+'Tarjetas, Goles y Tendencia'!ED35","v":0},{"$f":"+'Tarjetas, Goles y Tendencia'!EE35","v":0}]
[null,null,{"$f":"+'Tarjetas, Goles y Tendencia'!C36","v":"Jugador 18"},{"$f":"+'Tarjetas, Goles y Tendencia'!EB36","v":0},{"$f":"+'Tarjetas, Goles y Tendencia'!EC36","v":0},{"$f":"+'Tarjetas, Goles y Tendencia'!ED36","v":0},{"$f":"+'Tarjetas, Goles y Tendencia'!EE36","v":0}]
[null,null,{"$f":"+'Tarjetas, Goles y Tendencia'!C37","v":"Jugador 19"},{"$f":"+'Tarjetas, Goles y Tendencia'!EB37","v":0},{"$f":"+'Tarjetas, Goles y Tendencia'!EC37","v":0},{"$f":"+'Tarjetas, Goles y Tendencia'!ED37","v":0},{"$f":"+'Tarjetas, Goles y Tendencia'!EE37","v":0}]
[null,null,{"$f":"+'Tarjetas, Goles y Tendencia'!C38","v":"Jugador 20"},{"$f":"+'Tarjetas, Goles y Tendencia'!EB38","v":0},{"$f":"+'Tarjetas, Goles y Tendencia'!EC38","v":0},{"$f":"+'Tarjetas, Goles y Tendencia'!ED38","v":0},{"$f":"+'Tarjetas, Goles y Tendencia'!EE38","v":0}]
[null,null,{"$f":"+'Tarjetas, Goles y Tendencia'!C39","v":"Jugador 21"},{"$f":"+'Tarjetas, Goles y Tendencia'!EB39","v":0},{"$f":"+'Tarjetas, Goles y Tendencia'!EC39","v":0},{"$f":"+'Tarjetas, Goles y Tendencia'!ED39","v":0},{"$f":"+'Tarjetas, Goles y Tendencia'!EE39","v":0}]
[null,null,{"$f":"+'Tarjetas, Goles y Tendencia'!C40","v":"Jugador 22"},{"$f":"+'Tarjetas, Goles y Tendencia'!EB40","v":0},{"$f":"+'Tarjetas, Goles y Tendencia'!EC40","v":0},{"$f":"+'Tarjetas, Goles y Tendencia'!ED40","v":0},{"$f":"+'Tarjetas, Goles y Tendencia'!EE40","v":0}]
[null,null,{"$f":"+'Tarjetas, Goles y Tendencia'!C41","v":"Jugador 23"},{"$f":"+'Tarjetas, Goles y Tendencia'!EB41","v":0},{"$f":"+'Tarjetas, Goles y Tendencia'!EC41","v":0},{"$f":"+'Tarjetas, Goles y Tendencia'!ED41","v":0},{"$f":"+'Tarjetas, Goles y Tendencia'!EE41","v":0}]
[null,null,{"$f":"+'Tarjetas, Goles y Tendencia'!C42","v":"Jugador 24"},{"$f":"+'Tarjetas, Goles y Tendencia'!EB42","v":0},{"$f":"+'Tarjetas, Goles y Tendencia'!EC42","v":0},{"$f":"+'Tarjetas, Goles y Tendencia'!ED42","v":0},{"$f":"+'Tarjetas, Goles y Tendencia'!EE42","v":0}]
[null,null,{"$f":"+'Tarjetas, Goles y Tendencia'!C43","v":"Jugador 25"},{"$f":"+'Tarjetas, Goles y Tendencia'!EB43","v":0},{"$f":"+'Tarjetas, Goles y Tendencia'!EC43","v":0},{"$f":"+'Tarjetas, Goles y Tendencia'!ED43","v":0},{"$f":"+'Tarjetas, Goles y Tendencia'!EE43","v":0}]
[]
[]
[null,null,"Tendencia Liga"]
[]
[null,null,"Partido 1",{"$f":"'Tarjetas, Goles y Tendencia'!DV7","v":0}]
[null,null,"Partido 2",{"$f":"'Tarjetas, Goles y Tendencia'!DV8","v":0}]
[null,null,"Partido 3",{"$f":"'Tarjetas, Goles y Tendencia'!DV9","v":0}]
[null,null,"Partido 4",{"$f":"'Tarjetas, Goles y Tendencia'!DV10","v":0}]
[null,null,"Partido 5",{"$f":"'Tarjetas, Goles y Tendencia'!DV11","v":0}]
[null,null,"Partido 6",{"$f":"'Tarjetas, Goles y Tendencia'!DV12","v":0}]
[null,null,"Partido 7",{"$f":"'Tarjetas, Goles y Tendencia'!DV13","v":0}]
[null,null,"Partido 8",0]
[null,null,"Partido 9",{"$f":"'Tarjetas, Goles y Tendencia'!DV15","v":0}]
[null,null,"Partido 10",{"$f":"'Tarjetas, Goles y Tendencia'!DV16","v":0}]
[null,null,"Partido 11",{"$f":"'Tarjetas, Goles y Tendencia'!DV17","v":0}]
[null,null,"Partido 12",{"$f":"'Tarjetas, Goles y Tendencia'!DV18","v":0}]
[null,null,"Partido 13",{"$f":"'Tarjetas, Goles y Tendencia'!DV19","v":0}]
[null,null,"Partido 14",{"$f":"'Tarjetas, Goles y Tendencia'!DV20","v":0}]
[null,null,"Partido 15",{"$f":"'Tarjetas, Goles y Tendencia'!DV21","v":0}]
[null,null,"Partido 16",{"$f":"'Tarjetas, Goles y Tendencia'!DV22","v":0}]
[null,null,"Partido 17",{"$f":"'Tarjetas, Goles y Tendencia'!DV23","v":0}]
[null,null,"Partido 18",{"$f":"'Tarjetas, Goles y Tendencia'!DV24","v":0}]
[null,null,"Partido 19",{"$f":"'Tarjetas, Goles y Tendencia'!DV25","v":0}]
[null,null,"Partido 20",{"$f":"'Tarjetas, Goles y Tendencia'!DV26","v":0}]
[null,null,"Partido 21",{"$f":"'Tarjetas, Goles y Tendencia'!DV27","v":0}]
[null,null,"Partido 22",{"$f":"'Tarjetas, Goles y Tendencia'!DV28","v":0}]
[null,null,"Partido 23",{"$f":"'Tarjetas, Goles y Tendencia'!DV29","v":0}]
[null,null,"Partido 24",{"$f":"'Tarjetas, Goles y Tendencia'!DV30","v":0}]
[null,null,"Partido 25",{"$f":"'Tarjetas, Goles y Tendencia'!DV31","v":0}]
[null,null,"Partido 26",{"$f":"'Tarjetas, Goles y Tendencia'!DV32","v":0}]
[null,null,"Partido 27",{"$f":"'Tarjetas, Goles y Tendencia'!DV33","v":0}]
[null,null,"Partido 28",{"$f":"'Tarjetas, Goles y Tendencia'!DV34","v":0}]
[null,null,"Partido 29",{"$f":"'Tarjetas, Goles y Tendencia'!DV35","v":0}]
[null,null,"Partido 30",{"$f":"'Tarjetas, Goles y Tendencia'!DV36","v":0}]
[null,null,"Partido 31",{"$f":"'Tarjetas, Goles y Tendencia'!DV37","v":0}]
[null,null,"Partido 32",{"$f":"'Tarjetas, Goles y Tendencia'!DV38","v":0}]
[null,null,"Partido 33",{"$f":"'Tarjetas, Goles y Tendencia'!DV39","v":0}]
[null,null,"Partido 34",{"$f":"'Tarjetas, Goles y Tendencia'!DV40","v":0}]
[null,null,"Partido 35",{"$f":"'Tarjetas, Goles y Tendencia'!DV41","v":0}]
[null,null,"Partido 36",{"$f":"'Tarjetas, Goles y Tendencia'!DV42","v":0}]
[null,null,"Partido 37",{"$f":"'Tarjetas, Goles y Tendencia'!DV43","v":0}]
[null,null,"Partido 38",{"$f":"'Tarjetas, Goles y Tendencia'!DV44","v":0}]
[]
[null,null,"Racha liga"]
[]
[null,null,"Partido 1",{"$f":"'Tarjetas, Goles y Tendencia'!DY7","v":0}]
[null,null,"Partido 2",{"$f":"'Tarjetas, Goles y Tendencia'!DY8","v":0}]
[null,null,"Partido 3",{"$f":"'Tarjetas, Goles y Tendencia'!DY9","v":0}]
[null,null,"Partido 4",{"$f":"'Tarjetas, Goles y Tendencia'!DY10","v":0}]
[null,null,"Partido 5",{"$f":"'Tarjetas, Goles y Tendencia'!DY11","v":0}]
[null,null,"Partido 6",{"$f":"'Tarjetas, Goles y Tendencia'!DY12","v":0}]
[null,null,"Partido 7",{"$f":"'Tarjetas, Goles y Tendencia'!DY13","v":0}]
[null,null,"Partido 8",{"$f":"'Tarjetas, Goles y Tendencia'!DY14","v":0}]
[null,null,"Partido 9",{"$f":"'Tarjetas, Goles y Tendencia'!DY15","v":0}]
[null,null,"Partido 10",{"$f":"'Tarjetas, Goles y Tendencia'!DY16","v":0}]
[null,null,"Partido 11",{"$f":"'Tarjetas, Goles y Tendencia'!DY17","v":0}]
[null,null,"Partido 12",{"$f":"'Tarjetas, Goles y Tendencia'!DY18","v":0}]
[null,null,"Partido 13",{"$f":"'Tarjetas, Goles y Tendencia'!DY19","v":0}]
[null,null,"Partido 14",{"$f":"'Tarjetas, Goles y Tendencia'!DY20","v":0}]
[null,null,"Partido 15",{"$f":"'Tarjetas, Goles y Tendencia'!DY21","v":0}]
[null,null,"Partido 16",{"$f":"'Tarjetas, Goles y Tendencia'!DY22","v":0}]
[null,null,"Partido 17",{"$f":"'Tarjetas, Goles y Tendencia'!DY23","v":0}]
[null,null,"Partido 18",{"$f":"'Tarjetas, Goles y Tendencia'!DY24","v":0}]
[null,null,"Partido 19",{"$f":"'Tarjetas, Goles y Tendencia'!DY25","v":0}]
[null,null,"Partido 20",{"$f":"'Tarjetas, Goles y Tendencia'!DY26","v":0}]
[null,null,"Partido 21",{"$f":"'Tarjetas, Goles y Tendencia'!DY27","v":0}]
[null,null,"Partido 22",{"$f":"'Tarjetas, Goles y Tendencia'!DY28","v":0}]
[null,null,"Partido 23",{"$f":"'Tarjetas, Goles y Tendencia'!DY29","v":0}]
[null,null,"Partido 24",{"$f":"'Tarjetas, Goles y Tendencia'!DY30","v":0}]
[null,null,"Partido 25",{"$f":"'Tarjetas, Goles y Tendencia'!DY31","v":0}]
[null,null,"Partido 26",{"$f":"'Tarjetas, Goles y Tendencia'!DY32","v":0}]
[null,null,"Partido 27",{"$f":"'Tarjetas, Goles y Tendencia'!DY33","v":0}]
[null,null,"Partido 28",{"$f":"'Tarjetas, Goles y Tendencia'!DY34","v":0}]
[null,null,"Partido 29",{"$f":"'Tarjetas, Goles y Tendencia'!DY35","v":0}]
[null,null,"Partido 30",{"$f":"'Tarjetas, Goles y Tendencia'!DY36","v":0}]
[null,null,"Partido 31",{"$f":"'Tarjetas, Goles y Tendencia'!DY37","v":0}]
[null,null,"Partido 32",{"$f":"'Tarjetas, Goles y Tendencia'!DY38","v":0}]
[null,null,"Partido 33",{"$f":"'Tarjetas, Goles y Tendencia'!DY39","v":0}]
[null,null,"Partido 34",{"$f":"'Tarjetas, Goles y Tendencia'!DY40","v":0}]
[null,null,"Partido 35",{"$f":"'Tarjetas, Goles y Tendencia'!DY41","v":0}]
[null,null,"Partido 36",{"$f":"'Tarjetas, Goles y Tendencia'!DY42","v":0}]
[null,null,"Partido 37",{"$f":"'Tarjetas, Goles y Tendencia'!DY43","v":0}]
[null,null,"Partido 38",{"$f":"'Tarjetas, Goles y Tendencia'!DY44","v":0}]
[]
[]
[]
[null,null,"Amistoso"]
[]
[null,null,null,"TA","TR","Goles","Asist"]
[null,null,{"$f":"+'Tarjetas, Goles y Tendencia'!C52","v":"Jugador 1"},{"$f":"+'Tarjetas, Goles y Tendencia'!AM52","v":0},{"$f":"+'Tarjetas, Goles y Tendencia'!AN52","v":0},{"$f":"+'Tarjetas, Goles y Tendencia'!AO52","v":0},{"$f":"+'Tarjetas, Goles y Tendencia'!AP52","v":0}]
[null,null,{"$f":"+'Tarjetas, Goles y Tendencia'!C53","v":"Jugador 2"},{"$f":"+'Tarjetas, Goles y Tendencia'!AM53","v":0},{"$f":"+'Tarjetas, Goles y Tendencia'!AN53","v":0},{"$f":"+'Tarjetas, Goles y Tendencia'!AO53","v":0},{"$f":"+'Tarjetas, Goles y Tendencia'!AP53","v":0}]
[null,null,{"$f":"+'Tarjetas, Goles y Tendencia'!C54","v":"Jugador 3"},{"$f":"+'Tarjetas, Goles y Tendencia'!AM54","v":0},{"$f":"+'Tarjetas, Goles y Tendencia'!AN54","v":0},{"$f":"+'Tarjetas, Goles y Tendencia'!AO54","v":0},{"$f":"+'Tarjetas, Goles y Tendencia'!AP54","v":0}]
[null,null,{"$f":"+'Tarjetas, Goles y Tendencia'!C55","v":"Jugador 4"},{"$f":"+'Tarjetas, Goles y Tendencia'!AM55","v":0},{"$f":"+'Tarjetas, Goles y Tendencia'!AN55","v":0},{"$f":"+'Tarjetas, Goles y Tendencia'!AO55","v":0},{"$f":"+'Tarjetas, Goles y Tendencia'!AP55","v":0}]
[null,null,{"$f":"+'Tarjetas, Goles y Tendencia'!C56","v":"Jugador 5"},{"$f":"+'Tarjetas, Goles y Tendencia'!AM56","v":0},{"$f":"+'Tarjetas, Goles y Tendencia'!AN56","v":0},{"$f":"+'Tarjetas, Goles y Tendencia'!AO56","v":0},{"$f":"+'Tarjetas, Goles y Tendencia'!AP56","v":0}]
[null,null,{"$f":"+'Tarjetas, Goles y Tendencia'!C57","v":"Jugador 6"},{"$f":"+'Tarjetas, Goles y Tendencia'!AM57","v":0},{"$f":"+'Tarjetas, Goles y Tendencia'!AN57","v":0},{"$f":"+'Tarjetas, Goles y Tendencia'!AO57","v":0},{"$f":"+'Tarjetas, Goles y Tendencia'!AP57","v":0}]
[null,null,{"$f":"+'Tarjetas, Goles y Tendencia'!C58","v":"Jugador 7"},{"$f":"+'Tarjetas, Goles y Tendencia'!AM58","v":0},{"$f":"+'Tarjetas, Goles y Tendencia'!AN58","v":0},{"$f":"+'Tarjetas, Goles y Tendencia'!AO58","v":0},{"$f":"+'Tarjetas, Goles y Tendencia'!AP58","v":0}]
[null,null,{"$f":"+'Tarjetas, Goles y Tendencia'!C59","v":"Jugador 8"},{"$f":"+'Tarjetas, Goles y Tendencia'!AM59","v":0},{"$f":"+'Tarjetas, Goles y Tendencia'!AN59","v":0},{"$f":"+'Tarjetas, Goles y Tendencia'!AO59","v":0},{"$f":"+'Tarjetas, Goles y Tendencia'!AP59","v":0}]
[null,null,{"$f":"+'Tarjetas, Goles y Tendencia'!C60","v":"Jugador 9"},{"$f":"+'Tarjetas, Goles y Tendencia'!AM60","v":0},{"$f":"+'Tarjetas, Goles y Tendencia'!AN60","v":0},{"$f":"+'Tarjetas, Goles y Tendencia'!AO60","v":0},{"$f":"+'Tarjetas, Goles y Tendencia'!AP60","v":0}]
[null,null,{"$f":"+'Tarjetas, Goles y Tendencia'!C61","v":"Jugador 10"},{"$f":"+'Tarjetas, Goles y Tendencia'!AM61","v":0},{"$f":"+'Tarjetas, Goles y Tendencia'!AN61","v":0},{"$f":"+'Tarjetas, Goles y Tendencia'!AO61","v":0},{"$f":"+'Tarjetas, Goles y Tendencia'!AP61","v":0}]
[null,null,{"$f":"+'Tarjetas, Goles y Tendencia'!C62","v":"Jugador 11"},{"$f":"+'Tarjetas, Goles y Tendencia'!AM62","v":0},{"$f":"+'Tarjetas, Goles y Tendencia'!AN62","v":0},{"$f":"+'Tarjetas, Goles y Tendencia'!AO62","v":0},{"$f":"+'Tarjetas, Goles y Tendencia'!AP62","v":0}]
[null,null,{"$f":"+'Tarjetas, Goles y Tendencia'!C63","v":"Jugador 12"},{"$f":"+'Tarjetas, Goles y Tendencia'!AM63","v":0},{"$f":"+'Tarjetas, Goles y Tendencia'!AN63","v":0},{"$f":"+'Tarjetas, Goles y Tendencia'!AO63","v":0},{"$f":"+'Tarjetas, Goles y Tendencia'!AP63","v":0}]
[null,null,{"$f":"+'Tarjetas, Goles y Tendencia'!C64","v":"Jugador 13"},{"$f":"+'Tarjetas, Goles y Tendencia'!AM64","v":0},{"$f":"+'Tarjetas, Goles y Tendencia'!AN64","v":0},{"$f":"+'Tarjetas, Goles y Tendencia'!AO64","v":0},{"$f":"+'Tarjetas, Goles y Tendencia'!AP64","v":0}]
[null,null,{"$f":"+'Tarjetas, Goles y Tendencia'!C65","v":"Jugador 14"},{"$f":"+'Tarjetas, Goles y Tendencia'!AM65","v":0},{"$f":"+'Tarjetas, Goles y Tendencia'!AN65","v":0},{"$f":"+'Tarjetas, Goles y Tendencia'!AO65","v":0},{"$f":"+'Tarjetas, Goles y Tendencia'!AP65","v":0}]
[null,null,{"$f":"+'Tarjetas, Goles y Tendencia'!C66","v":"Jugador 15"},{"$f":"+'Tarjetas, Goles y Tendencia'!AM66","v":0},{"$f":"+'Tarjetas, Goles y Tendencia'!AN66","v":0},{"$f":"+'Tarjetas, Goles y Tendencia'!AO66","v":0},{"$f":"+'Tarjetas, Goles y Tendencia'!AP66","v":0}]
[null,null,{"$f":"+'Tarjetas, Goles y Tendencia'!C67","v":"Jugador 16"},{"$f":"+'Tarjetas, Goles y Tendencia'!AM67","v":0},{"$f":"+'Tarjetas, Goles y Tendencia'!AN67","v":0},{"$f":"+'Tarjetas, Goles y Tendencia'!AO67","v":0},{"$f":"+'Tarjetas, Goles y Tendencia'!AP67","v":0}]
[null,null,{"$f":"+'Tarjetas, Goles y Tendencia'!C68","v":"Jugador 17"},{"$f":"+'Tarjetas, Goles y Tendencia'!AM68","v":0},{"$f":"+'Tarjetas, Goles y Tendencia'!AN68","v":0},{"$f":"+'Tarjetas, Goles y Tendencia'!AO68","v":0},{"$f":"+'Tarjetas, Goles y Tendencia'!AP68","v":0}]
[null,null,{"$f":"+'Tarjetas, Goles y Tendencia'!C69","v":"Jugador 18"},{"$f":"+'Tarjetas, Goles y Tendencia'!AM69","v":0},{"$f":"+'Tarjetas, Goles y Tendencia'!AN69","v":0},{"$f":"+'Tarjetas, Goles y Tendencia'!AO69","v":0},{"$f":"+'Tarjetas, Goles y Tendencia'!AP69","v":0}]
[null,null,{"$f":"+'Tarjetas, Goles y Tendencia'!C70","v":"Jugador 19"},{"$f":"+'Tarjetas, Goles y Tendencia'!AM70","v":0},{"$f":"+'Tarjetas, Goles y Tendencia'!AN70","v":0},{"$f":"+'Tarjetas, Goles y Tendencia'!AO70","v":0},{"$f":"+'Tarjetas, Goles y Tendencia'!AP70","v":0}]
[null,null,{"$f":"+'Tarjetas, Goles y Tendencia'!C71","v":"Jugador 20"},{"$f":"+'Tarjetas, Goles y Tendencia'!AM71","v":0},{"$f":"+'Tarjetas, Goles y Tendencia'!AN71","v":0},{"$f":"+'Tarjetas, Goles y Tendencia'!AO71","v":0},{"$f":"+'Tarjetas, Goles y Tendencia'!AP71","v":0}]
[null,null,{"$f":"+'Tarjetas, Goles y Tendencia'!C72","v":"Jugador 21"},{"$f":"+'Tarjetas, Goles y Tendencia'!AM72","v":0},{"$f":"+'Tarjetas, Goles y Tendencia'!AN72","v":0},{"$f":"+'Tarjetas, Goles y Tendencia'!AO72","v":0},{"$f":"+'Tarjetas, Goles y Tendencia'!AP72","v":0}]
[null,null,{"$f":"+'Tarjetas, Goles y Tendencia'!C73","v":"Jugador 22"},{"$f":"+'Tarjetas, Goles y Tendencia'!AM73","v":0},{"$f":"+'Tarjetas, Goles y Tendencia'!AN73","v":0},{"$f":"+'Tarjetas, Goles y Tendencia'!AO73","v":0},{"$f":"+'Tarjetas, Goles y Tendencia'!AP73","v":0}]
[null,null,{"$f":"+'Tarjetas, Goles y Tendencia'!C74","v":"Jugador 23"},{"$f":"+'Tarjetas, Goles y Tendencia'!AM74","v":0},{"$f":"+'Tarjetas, Goles y Tendencia'!AN74","v":0},{"$f":"+'Tarjetas, Goles y Tendencia'!AO74","v":0},{"$f":"+'Tarjetas, Goles y Tendencia'!AP74","v":0}]
[null,null,{"$f":"+'Tarjetas, Goles y Tendencia'!C75","v":"Jugador 24"},{"$f":"+'Tarjetas, Goles y Tendencia'!AM75","v":0},{"$f":"+'Tarjetas, Goles y Tendencia'!AN75","v":0},{"$f":"+'Tarjetas, Goles y Tendencia'!AO75","v":0},{"$f":"+'Tarjetas, Goles y Tendencia'!AP75","v":0}]
[null,null,{"$f":"+'Tarjetas, Goles y Tendencia'!C76","v":"Jugador 25"},{"$f":"+'Tarjetas, Goles y Tendencia'!AM76","v":0},{"$f":"+'Tarjetas, Goles y Tendencia'!AN76","v":0},{"$f":"+'Tarjetas, Goles y Tendencia'!AO76","v":0},{"$f":"+'Tarjetas, Goles y Tendencia'!AP76","v":0}]